{"text_format":"3","workbook":"xlsx","n_sheets":7,"sheets":["Zestawienie","Cz. I OPZ IT","Cz. II OPZ Multimedia","Cz. III OPZ Oprogramowanie","Zał. 2 Formularz asort.-il. IT","Zał. 2 Form. asort.  Multimedia","Zał. 2 Form. asort. il. Oprogr"],"not_rendered":{"images":53,"defined_names":8},"read":"whole","date_system":"1900"}

{"sheet":"Zestawienie","index":0,"n_rows":65,"n_cols":23,"rows_kept":65,"merged":[[3,1,39,1],[42,1,60,1],[61,1,64,1]]}
[]
[{"$nulls":4},1,2,3,4,5,6,7,8,9,10,11,null,12,13,14,15,16,17]
[{"$nulls":3},"Poz. opisu","Sekcja Informatyki","Instytut Zarządzania","Wydawnictwo","Kancelaria Ogólna\nGrzmiąca","Instytut Geografii","SwPiL","BOSiD","Katedra Neofilologii","Katedra Filologii Angielskiej","Instytut Bezpieczeństwa i Socjologii","Biuro ds. Kształcenia","Biuro ds.. Studentów","BR","Instytut Pedagogiki i Psychologii","Biuro ds. Nauki","Sekcja Inwestycyjno-techiczna","Biblioteka","Instytut Biologii","ILOŚĆ RAZEM"]
[null,"CZĘŚĆ   I \n Sprzęt IT",{"$f":"'Cz. I OPZ IT'!D6","v":"Komputer stacjonarny ver. 1"},{"$f":"'Cz. I OPZ IT'!B7","v":"1.01"},15,23,null,3,{"$nulls":3},1,5,null,2,{"$nulls":3},1,{"$nulls":3},{"$f":"SUM(E4:V4)","v":50}]
[null,null,{"$f":"'Cz. I OPZ IT'!D25","v":"Komputer stacjonarny ver. 2"},{"$f":"'Cz. I OPZ IT'!B26","v":"1.02"},{"$nulls":7},1,null,10,{"$nulls":8},{"$f":"SUM(E5:V5)","v":11}]
[null,null,{"$f":"'Cz. I OPZ IT'!D44","v":"Komputer stacjonarny ver. 3"},{"$f":"'Cz. I OPZ IT'!B45","v":"1.03"},{"$nulls":3},1,{"$nulls":14},1]
[null,null,{"$f":"'Cz. I OPZ IT'!D63","v":"Monitor ver. 1"},{"$f":"'Cz. I OPZ IT'!B64","v":"1.04"},15,23,null,3,1,{"$nulls":3},5,{"$nulls":9},47]
[null,null,{"$f":"'Cz. I OPZ IT'!D77","v":"Monitor ver. 2"},{"$f":"'Cz. I OPZ IT'!B78","v":"1.05"},{"$nulls":3},1,{"$nulls":3},2,null,null,2,{"$nulls":3},2,{"$nulls":3},7]
[null,null,{"$f":"'Cz. I OPZ IT'!D92","v":"Laptop ver. 1"},{"$f":"'Cz. I OPZ IT'!B93","v":"1.06"},{"$nulls":3},18,1,{"$nulls":10},1,null,null,20]
[null,null,{"$f":"'Cz. I OPZ IT'!D121","v":"Laptop ver. 2"},{"$f":"'Cz. I OPZ IT'!B122","v":"1.07"},{"$nulls":3},3,1,{"$nulls":4},1,{"$nulls":8},5]
[null,null,{"$f":"'Cz. I OPZ IT'!D151","v":"Laptop ver. 3"},{"$f":"'Cz. I OPZ IT'!B152","v":1.08},2,1,{"$nulls":16},3]
[null,null,{"$f":"'Cz. I OPZ IT'!D177","v":"Stacja dokująca ver. 1"},{"$f":"'Cz. I OPZ IT'!B178","v":"1.09"},4,{"$nulls":17},4]
[null,null,{"$f":"'Cz. I OPZ IT'!D196","v":"Komputer typu tablet wraz z klawiaturą oraz rysikeim"},{"$f":"'Cz. I OPZ IT'!B197","v":"1.10"},{"$nulls":11},1,{"$nulls":6},1]
[null,null,{"$f":"'Cz. I OPZ IT'!D222","v":"Zewnętrzny dysk twardy"},{"$f":"'Cz. I OPZ IT'!B223","v":"1.11"},{"$nulls":4},2,{"$nulls":12},1,3]
[null,null,{"$f":"'Cz. I OPZ IT'!D237","v":"Zewnętrzny dysk SSD"},{"$f":"'Cz. I OPZ IT'!B238","v":"1.12"},{"$nulls":3},1,{"$nulls":14},1]
[null,null,{"$f":"'Cz. I OPZ IT'!D249","v":"Dysk SSD 512 GB"},{"$f":"'Cz. I OPZ IT'!B250","v":"1.13"},{"$nulls":5},27,{"$nulls":12},27]
[null,null,{"$f":"'Cz. I OPZ IT'!D258","v":"Dysk SSD 1000 GB (1TB) M.2 "},{"$f":"'Cz. I OPZ IT'!B259","v":"1.14"},4,{"$nulls":3},11,22,{"$nulls":12},37]
[null,null,{"$f":"'Cz. I OPZ IT'!D269","v":"Dysk SSD 512 GB M.2 "},{"$f":"'Cz. I OPZ IT'!B270","v":"1.15"},{"$nulls":5},63,{"$nulls":12},63]
[null,null,{"$f":"'Cz. I OPZ IT'!D280","v":"Dysk SSD 1TB"},{"$f":"'Cz. I OPZ IT'!B281","v":"1.16"},6,{"$nulls":17},6]
[null,null,{"$f":"'Cz. I OPZ IT'!D289","v":"Klawiatura i myszka bezprzewodowa ver.1"},{"$f":"'Cz. I OPZ IT'!B290","v":"1.17"},3,{"$nulls":12},2,{"$nulls":4},5]
[null,null,{"$f":"'Cz. I OPZ IT'!D307","v":"Zestaw Klawiatura + Mysz ver.2"},{"$f":"'Cz. I OPZ IT'!B308","v":"1.18"},null,23,{"$nulls":16},23]
[null,null,{"$f":"'Cz. I OPZ IT'!D327","v":"Switch  zarządzalny ver 2"},{"$f":"'Cz. I OPZ IT'!B328","v":"1.19"},8,{"$nulls":17},8]
[null,null,{"$f":"'Cz. I OPZ IT'!D356","v":"UPS"},{"$f":"'Cz. I OPZ IT'!B357","v":"1.20"},{"$nulls":16},1,null,1]
[null,null,{"$f":"'Cz. I OPZ IT'!D366","v":"Obudowa do dysku USB 3.2 - SSD/NVMe M.2"},{"$f":"'Cz. I OPZ IT'!B367","v":"1.21"},{"$nulls":5},1,{"$nulls":12},1]
[null,null,{"$f":"'Cz. I OPZ IT'!D382","v":"Adapter Bluetooth"},{"$f":"'Cz. I OPZ IT'!B383","v":"1.22"},{"$nulls":3},2,{"$nulls":14},2]
[null,null,{"$f":"'Cz. I OPZ IT'!D389","v":"Czytnik kart pamięci"},{"$f":"'Cz. I OPZ IT'!B390","v":"1.23"},{"$nulls":15},1,null,null,1]
[null,null,{"$f":"'Cz. I OPZ IT'!D396","v":"Przewód Ethernet - Patchcord"},{"$f":"'Cz. I OPZ IT'!B397","v":"1.24"},{"$nulls":8},16,{"$nulls":9},16]
[null,null,{"$f":"'Cz. I OPZ IT'!D404","v":"Stacja dokująca ver. 2"},{"$f":"'Cz. I OPZ IT'!B405","v":"1.25"},2,{"$nulls":17},2]
[null,null,{"$f":"'Cz. I OPZ IT'!D419","v":"Tester LAN"},{"$f":"'Cz. I OPZ IT'!B420","v":"1.26"},3,{"$nulls":17},3]
[null,null,{"$f":"'Cz. I OPZ IT'!D431","v":"Dmuchawa wielofunkcyjna"},{"$f":"'Cz. I OPZ IT'!B432","v":"1.27"},3,{"$nulls":17},3]
[null,null,{"$f":"'Cz. I OPZ IT'!D443","v":"Zestaw zaciskarka do konówek ethernet "},{"$f":"'Cz. I OPZ IT'!B444","v":"1.28"},3,{"$nulls":17},3]
[null,null,{"$f":"'Cz. I OPZ IT'!D449","v":"Linka zabezpieczająca do laptopa"},{"$f":"'Cz. I OPZ IT'!B450","v":"1.29"},{"$nulls":8},17,{"$nulls":9},17]
[null,null,{"$f":"'Cz. I OPZ IT'!D455","v":"Tester przewodów i sieci WI-fi"},{"$f":"'Cz. I OPZ IT'!B456","v":"1.30"},1,{"$nulls":17},1]
[null,null,{"$f":"'Cz. I OPZ IT'!D484","v":"UPS Rack do szafy dystrybucyjnej 3kv"},{"$f":"'Cz. I OPZ IT'!B485","v":"1.31"},10,{"$nulls":17},10]
[null,null,{"$f":"'Cz. I OPZ IT'!D498","v":"Router do szafy dystrybucyjnej"},{"$f":"'Cz. I OPZ IT'!B499","v":"1.32"},10,{"$nulls":17},10]
[null,null,{"$f":"'Cz. I OPZ IT'!D512","v":"Urządzenie NAS z dyskami"},{"$f":"'Cz. I OPZ IT'!B513","v":"1.33"},6,{"$nulls":17},6]
[null,null,{"$f":"'Cz. I OPZ IT'!D527","v":"Niszczarka dysków HDD"},{"$f":"'Cz. I OPZ IT'!B528","v":"1.34"},2,{"$nulls":17},2]
[null,null,{"$f":"'Cz. I OPZ IT'!D535","v":"Karta Micro SD"},{"$f":"'Cz. I OPZ IT'!B536","v":"1.35"},{"$nulls":17},1,1]
[null,null,{"$f":"'Cz. I OPZ IT'!D541","v":"Urządzenie wielofunkcyjne atramentowe"},{"$f":"'Cz. I OPZ IT'!B542","v":"1.36"},{"$nulls":3},2,1,{"$nulls":8},1,{"$nulls":4},4]
[null,null,{"$f":"'Cz. I OPZ IT'!D575","v":"Urządzenie wielofunkcyjne laserowe"},{"$f":"'Cz. I OPZ IT'!B576","v":"1.37"},1,1,{"$nulls":16},2]
[null,null,{"$f":"'Cz. I OPZ IT'!D595","v":"Drukarka o wysokiej wydajności"},{"$f":"'Cz. I OPZ IT'!B596","v":"1.38"},null,null,1,{"$nulls":15},1]
[null,null,{"$f":"'Cz. I OPZ IT'!D615","v":"Urządzenie wielofunkcyjne - kolorowe, laserowe"},{"$f":"'Cz. I OPZ IT'!B616","v":"1.39"},{"$nulls":6},1,{"$nulls":11},1]
[null,"CZĘŚĆ   II   Multimedia",{"$f":"'Cz. II OPZ Multimedia'!D6","v":"Głośnik bluetooth ver.1"},{"$f":"'Cz. II OPZ Multimedia'!B7","v":"2.01"},{"$nulls":13},2,{"$nulls":4},2]
[null,null,{"$f":"'Cz. II OPZ Multimedia'!D14","v":"Głosnik Bluetooth ver.2"},{"$f":"'Cz. II OPZ Multimedia'!B15","v":"2.02"},{"$nulls":10},1,{"$nulls":7},1]
[null,null,{"$f":"'Cz. II OPZ Multimedia'!D22","v":"Kamera internetowa USB z mikrofonem "},{"$f":"'Cz. II OPZ Multimedia'!B23","v":"2.03"},{"$nulls":13},1,{"$nulls":4},1]
[null,null,{"$f":"'Cz. II OPZ Multimedia'!D33","v":"Projektor ver. 1"},{"$f":"'Cz. II OPZ Multimedia'!B34","v":"2.04"},null,1,null,2,3,{"$nulls":4},4,{"$nulls":8},10]
[null,null,{"$f":"'Cz. II OPZ Multimedia'!D52","v":"Ekran ścienny "},{"$f":"'Cz. II OPZ Multimedia'!B53","v":"2.06"},{"$nulls":3},2,{"$nulls":4},6,{"$nulls":9},8]
[null,null,{"$f":"'Cz. II OPZ Multimedia'!D61","v":"Słuchawki bezprzewodowe nauszne z mikrofonem"},{"$f":"'Cz. II OPZ Multimedia'!B62","v":"2.07"},{"$nulls":16},3,null,3]
[null,null,{"$f":"'Cz. II OPZ Multimedia'!D78","v":"Monitor interaktywny z montażem nasciennym ver.1"},{"$f":"'Cz. II OPZ Multimedia'!B79","v":"2.08"},{"$nulls":7},2,{"$nulls":10},2]
[null,null,{"$f":"'Cz. II OPZ Multimedia'!D105","v":"Telewizor duży z montażem naściennym"},{"$f":"'Cz. II OPZ Multimedia'!B106","v":"2.09"},null,1,null,1,{"$nulls":14},2]
[null,null,{"$f":"'Cz. II OPZ Multimedia'!D128","v":"Google VR"},{"$f":"'Cz. II OPZ Multimedia'!B129","v":"2.10"},{"$nulls":4},11,{"$nulls":13},11]
[null,null,{"$f":"'Cz. II OPZ Multimedia'!D139","v":"Mikrofon Wielokierunkowy - Studyjny"},{"$f":"'Cz. II OPZ Multimedia'!B140","v":"2.11"},{"$nulls":4},1,{"$nulls":13},1]
[null,null,{"$f":"'Cz. II OPZ Multimedia'!D153","v":"Tablica interaktywna z projektorem"},{"$f":"'Cz. II OPZ Multimedia'!B154","v":"2.12"},{"$nulls":9},1,{"$nulls":8},1]
[null,null,{"$f":"'Cz. II OPZ Multimedia'!D183","v":"Kamera sportowa \"LIVE\""},{"$f":"'Cz. II OPZ Multimedia'!B184","v":"2.13"},null,3,{"$nulls":16},3]
[null,null,{"$f":"'Cz. II OPZ Multimedia'!D201","v":"Zestaw 3 Lamp LED ze statywami i walizką"},{"$f":"'Cz. II OPZ Multimedia'!B202","v":"2.14"},null,1,{"$nulls":16},1]
[null,null,{"$f":"'Cz. II OPZ Multimedia'!D216","v":"Aparat bezlusterkowy cyfrowy"},{"$f":"'Cz. II OPZ Multimedia'!B217","v":"2.15"},null,1,{"$nulls":16},1]
[null,null,{"$f":"'Cz. II OPZ Multimedia'!D238","v":"Zestaw do montażu podcastów audio"},{"$f":"'Cz. II OPZ Multimedia'!B239","v":"2.16"},null,1,{"$nulls":16},1]
[null,null,{"$f":"'Cz. II OPZ Multimedia'!D263","v":"Telewizor hotelowy z uchwytem wysięgnikowym"},{"$f":"'Cz. II OPZ Multimedia'!B264","v":"2.17"},{"$nulls":3},17,{"$nulls":14},17]
[null,null,{"$f":"'Cz. II OPZ Multimedia'!D290","v":"Power audio z zestawem mikrofonów"},{"$f":"'Cz. II OPZ Multimedia'!B291","v":"2.18"},{"$nulls":12},1,{"$nulls":5},1]
[null,null,{"$f":"'Cz. II OPZ Multimedia'!D311","v":"Monitor interaktywny z montażem nasciennym ver.2"},{"$f":"'Cz. II OPZ Multimedia'!B312","v":"2.19"},4,{"$nulls":8},2,{"$nulls":8},6]
[null,null,{"$f":"'Cz. II OPZ Multimedia'!D338","v":"Monitor 75\" 4k "},{"$f":"'Cz. II OPZ Multimedia'!B339","v":"2.20"},2,{"$nulls":17},2]
[null,"CZĘŚĆ III \nOprogramowanie",{"$f":"'Cz. III OPZ Oprogramowanie'!C4","v":"Program VR"},{"$f":"'Cz. III OPZ Oprogramowanie'!D4","v":"3.01"},{"$nulls":4},2,{"$nulls":13},2]
[null,null,{"$f":"'Cz. III OPZ Oprogramowanie'!C8","v":"Program Graficzny"},{"$f":"'Cz. III OPZ Oprogramowanie'!D8","v":"3.02"},{"$nulls":4},1,{"$nulls":13},1]
[null,null,{"$f":"'Cz. III OPZ Oprogramowanie'!C12","v":"Program do zdalnej łączności między PC"},{"$f":"'Cz. III OPZ Oprogramowanie'!D12","v":"3.03"},{"$nulls":5},1,{"$nulls":12},1]
[null,null,{"$f":"'Cz. III OPZ Oprogramowanie'!C15","v":"Oprogramowanie serwerowe"},{"$f":"'Cz. III OPZ Oprogramowanie'!D15","v":"3.04"},1,{"$nulls":17},1]

{"sheet":"Cz. I OPZ IT","index":1,"n_rows":778,"n_cols":6,"rows_kept":778,"merged":[[2,1,2,5],[31,2,32,2],[50,2,51,2],[67,2,68,2],[70,2,72,2],[73,2,74,2],[81,2,83,2],[85,2,87,2],[88,2,89,2],[93,2,94,2],[102,2,104,2],[106,2,108,2],[109,2,113,2],[114,2,116,2],[122,2,123,2],[131,2,133,2],[131,4,132,4],[135,2,137,2],[138,2,142,2],[152,2,153,2],[161,2,163,2],[165,2,166,2],[167,2,170,2],[171,2,172,2],[180,2,185,2],[188,2,193,2],[225,2,227,2],[228,2,229,2],[290,2,291,2],[293,2,294,2],[302,2,303,2],[315,2,315,3],[327,2,327,3],[342,2,342,3],[356,5,363,5],[382,5,386,5],[389,5,393,5],[445,2,446,2],[445,3,446,3],[456,2,458,2],[539,1,539,5],[542,2,543,2],[544,2,548,2],[549,2,550,2],[565,2,567,2],[570,2,571,2],[577,2,578,2],[579,2,582,2],[588,2,590,2],[629,2,629,3],[630,1,630,3],[637,2,637,3],[648,2,648,3],[657,2,657,3],[658,2,658,3],[679,1,679,3],[680,2,680,3],[682,2,682,3],[683,2,683,3],[684,2,684,3],[689,2,689,3],[693,2,693,3],[694,2,694,3],[703,2,703,3],[716,2,716,3],[718,2,718,3],[722,2,722,3],[724,2,724,3],[732,2,732,3],[777,2,777,3]]}
[null,"CZĘŚĆ I  Opis przedmiotu zamówienia dla części 1"]
[]
[null,"Jeżeli w opisie przedmiotu zamówienia wskazano jakikolwiek znak towarowy, patent czy pochodzenie, należy przyjąć, że wskazane patenty, znaki towarowe, pochodzenie określają parametry techniczne, eksploatacyjne, użytkowe, co oznacza, że Zamawiający dopuszcza złożenie oferty w tej części przedmiotu zamówienia o równoważnych parametrach technicznych, eksploatacyjnych i użytkowych. W celu umożliwienia Zamawiającemu odpowiedniej weryfikacji zaoferowanego sprzętu lub oprogramowania pod kątem minimalnych wymagań należy podać dokładną nazwę producenta, model, procesor, nr katalogowy itp. Nie dopuszcza się wpisania wyrażeń typu: spełnia, spełniający minimalne wymagania itd.  Wszystkie opisane parametry wymagane są wymaganiami minimalnymi. Zamawiający akceptuje rozwiązania o parametrach równoważnych lub lepszych, bez utraty funkcjonalności i wydajności."]
[]
[null,"Poz.",null,"Opis Zamawiającego","Opis Wykonawcy \n(producent i model, procesor i inne parametry )","Zdjęcie poglądowe"]
[{"$nulls":3},"Komputer stacjonarny ver. 1"]
[null,"1.01","Typ: ","Komputer do obróbki tekstu, wprowadzania danych i pracy w pracowniach IT"]
[null,null,"Procesor:"," - zgodny z architekturą x86 i x64\n - Procesor osiągający w teście PassMark CPU Mark wynik \n    min. 18500 punktów Zamawiający będzie weryfikował ten parametr na podstawie \n    danych z drugiej kolumny tabeli z wynikami testów procesorów, które są załącznikiem \n    do SWZ \n - Procesor musi obsługiwać 64 bitowe systemy "]
[null,null,"Ilość rdzeni:"," min. 6"]
[null,null,"Pamięć:","a) Min 16 GB DDR4 w jednym module \nb) Możliwość rozbudowy do min 64GB.\nc) Min Jeden slot DIMM wolny. "]
[null,null,"Napęd  optyczny: ","DVD+/-RW"]
[null,null,"Dysk: ","Min. 512 GB SSD M.2 PCIe Gen3 x4 NVMe"]
[null,null,"Karta graficzna: ","Zintegrowana w procesorze, pozwalająca na osiągniecie rozdzielczości min. 4096 x 2160, umożliwiająca osiągniecie w teście PassMark G3D Mark wyniku średniego min. 1600 punktów wg strony: https://www.videocardbenchmark.net, minimum złącza 1 x DisplayPort, 1 x HDMI, 1 x D-Sub, umożliwiająca pracę dwumoniotorową"]
[null,null,"Karta dźwiękowa:","dowolna, wej. mikrofonowe, wyj. słuchawkowe/ głośnikowe, wej. Liniowe"]
[null,null,"Komunikacja:","Zintegrowana z płytą główną, o prędkości 10/100/1000Mb/s. Dodatkowo karta sieciowa PCI-E WiFi 6, bluetooth 5.2"]
[null,null,"Interface:","Komputer wyposażony w następujące gniazda na przednim panelu obudowy\n   - 2 gniazda USB 3.2\n   - 2 gniazda USB 2.0\n   - 1 uniwersalne gniazdo do przyłączenia słuchawek i mikrofonu;"]
[null,null,"Rodzaje wejść / wyjść:","min. HDMI, RJ45, wyj. słuchawkowe, wej. mikrofonowe, wej. audio liniowe, USB, DisplayPort"]
[null,null,"BIOS"," - BIOS zgodny ze specyfikacją UEFI\n - Możliwość, bez uruchamiania systemu operacyjnego z dysku twardego komputera lub innych podłączonych do niego urządzeń zewnętrznych odczytania z BIOS informacji o: \n      *  wersji BIOS, \n      * nr seryjnym komputera wraz z datą kompilacji BIOS, \n      * ilości i sposobu obłożenia slotów pamięciami RAM, \n      *  typie procesora wraz z informacją o ilości rdzeni, \n      *  pojemności zainstalowanego dysku twardego\n      *  rodzajach napędów optycznych\n      *  MAC adresie zintegrowanej karty sieciowej\n      * kontrolerze audio\n  - Funkcja blokowania wejścia do  BIOS oraz blokowania startu systemu operacyjnego, (gwarantujący utrzymanie zapisanego hasła nawet w przypadku odłączenia wszystkich źródeł zasilania i podtrzymania BIOS)\n  - Funkcja blokowania/odblokowania BOOT-owania stacji roboczej z zewnętrznych urządzeń  \n  - Możliwość polegająca na kontrolowaniu urządzeń wykorzystujących magistralę komunikacyjną PCI, bez uruchamiania systemu operacyjnego z dysku twardego komputera lub innych podłączonych do niego urządzeń zewnętrznych. Pod pojęciem kontroli Zamawiający rozumie funkcjonalność polegającą na blokowaniu/odblokowaniu slotów PCI.\n  - Możliwość, bez uruchamiania systemu operacyjnego z dysku twardego komputera lub innych, podłączonych do niego urządzeń zewnętrznych,  ustawienia hasła na poziomie systemu, administratora oraz dysku twardego oraz możliwość ustawienia następujących zależności pomiędzy nimi: brak możliwości zmiany hasła pozwalającego na uruchomienie systemu bez podania hasła administratora.\n - Możliwość włączenia/wyłączenia zintegrowanej karty dźwiękowej, karty sieciowej, portu równoległego, portu szeregowego z poziomu BIOS, bez uruchamiania systemu operacyjnego z dysku twardego komputera lub innych, podłączonych do niego, urządzeń zewnętrznych.\n - Możliwość założenie szyfrowanego hasła na dysk SSD (funkcja działająca osobno i niezależnie od haseł administratora/użytkownika UEFI) oparte o standard AES256\n - Możliwość ustawienia portów USB w trybie „no BOOT”, czyli podczas startu komputer nie wykrywa urządzeń bootujących typu USB, natomiast po uruchomieniu systemu operacyjnego porty USB są aktywne.\n - Możliwość selektywnego wyłączania podedynczych portów USB"]
[null,null,"Dod. informacje:","klawiatura USB QWERTY i  mysz optyczna producenta zestawu komputerowego, \nKażdy komputer powinien być oznaczony indywidualnym numerem seryjnym umieszonym na obudowie, oraz musi być wpisany na stałe w BIOS"]
[null,null,"Standardy i\ncertyfikaty","Certyfikat PN-EN ISO 9001:2015, PN-EN ISO14001:2015 oraz PN-ISO/IEC 27001:2014 lub nowsze na procesy projektowania, produkcję, sprzedaż i serwis,\nCertyfikat PN-EN ISO 50001:2018 \nCertyfikat TCO 08- parametr oceniany\nWYMIENIĆ POSIADANE CERTYFIKATY W KOLUMNIE OPIS WYKONAWCY \nCertyfikaty wymagane do złożenia wraz z ofertą"]
[null,null,"Wsparcie techniczne","Dedykowany portal techniczny producenta, umożliwiający Zamawiającemu zgłaszanie awarii oraz samodzielne zamawianie zamiennych komponentów. Możliwość sprawdzenia kompletnych danych o urządzeniu na jednej witrynie internetowej prowadzonej przez producenta (automatyczna identyfikacja komputera, konfiguracja bieżąca, data wygaśnięcia gwarancji, data produkcji komputera, dedykowane oprogramowanie). Wykonawca poda adres strony oraz sposób realizacji wymagania (opis uzyskania w/w informacji)."]
[null,null,"Pakiet oprogramowania biurowego","Rozszerzenie posiadanej i wykorzystywanej przez zamawiającego licencji na pakiet oprogramowania biurowego  \"MS Office Professional Plus 2019 EDU dla szkół i Uczelni lub oprogramowanie równorzędne. Licencja wieczysta (dożywotnia).  \nTenant do office:  officeapsl.onmicrosoft.com\n\nWymogi równorzedności zostały opisane w \"Przypisie 2\""]
[null,null,"System: ","Preinstalowany system operacyjny ver. 1,  klasy PC musi spełniać  wymagania według poniższego załącznika  (przypis 1) poprzez wbudowane mechanizmy, bez użycia dodatkowych aplikacji (np. Windows 11  prof. lub równoważny wg opisu )  w celu zapewnienia współpracy ze środowiskiem sieciowym oraz aplikacjami funkcjonującymi w środowisku Uczelni. Nie dopuszcza się w tym zakresie licencji pochodzącym z rynku wtórnego. Klucz licencyjny Windows 11 Professional lub równoważny musi być zapisany trwale w BIOS"]
[]
[{"$nulls":3},"Komputer stacjonarny ver. 2"]
[null,"1.02","Typ: ","komputer stacjonarny do pracowni multimedialnej"]
[null,null,"Procesor:"," - zgodny z architekturą x86 i x64\n - Procesor osiągający w teście PassMark CPU Mark wynik \n    min. 31400 punktów Zamawiający będzie weryfikował ten parametr na podstawie \n    danych z drugiej kolumny tabeli z wynikami testów procesorów, które są załącznikiem \n    do SWZ \n - Procesor musi obsługiwać 64 bitowe systemy "]
[null,null,"Ilość rdzeni:"," min. 12"]
[null,null,"Pamięć:","a) Min 32GB DDR5 min. 4000MHz.\nb) Możliwość rozbudowy do min 128GB.\nc) Min dwa sloty DIMM wolny."]
[null,null,"Napęd  optyczny: ","DVD+/-RW (możliwa jest dostawa napędu zewnetrznego USB)"]
[null,null,"Dysk: ","Min. 1024 GB SSD M.2 PCIe NVMe"]
[null,null,"Karta graficzna: ","Zintegrowana w procesorze, pozwalająca na osiągniecie rozdzielczości min. 4096 x 2160, umożliwiająca osiągniecie w teście PassMark G3D Mark wyniku średniego min. 1600 punktów wg strony: https://www.videocardbenchmark.net, minimum złącza 1 x DisplayPort, 1 x HDMI, 1 x D-Sub, umożliwiająca pracę dwumoniotorową"]
[{"$nulls":3},"Niezintegrowana, z obsługą dekodowania sprzętowego VP9 i HEVC\nObsługiwana przez DirectX w wersji co najmniej 12 i OpenGL w wersji co najmniej 4, pamięć GDDR7\nKarta graficzna musi osiągać w teście Passmark G3D Mark, w kategorii Average G3D Mark wynik co najmniej 20600 pkt. według wyników opublikowanych na stronie https://www.videocardbenchmark.net/gpu_list.php"]
[null,null,"Karta dźwiękowa:","dowolna, wej. mikrofonowe, wyj. słuchawkowe/ głośnikowe, wej. Liniowe"]
[null,null,"Komunikacja:","Zintegrowana z płytą główną, o prędkości 10/100/1000Mb/s. Dodatkowo karta sieciowa PCI-E WiFi 6, bluetooth 5.2"]
[null,null,"Rodzaje wejść / wyjść:","min. HDMI, RJ45, wyj. słuchawkowe, wej. mikrofonowe, wej. audio liniowe, USB, DisplayPort"]
[null,null,"Dod. funkcjonalność:","klawiatura USB QWERTY i  mysz optyczna producenta zestawu komputerowego, \nKażdy komputer powinien być oznaczony indywidualnym numerem seryjnym umieszonym na obudowie, oraz musi być wpisany na stałe w BIOS"]
[null,null,"BIOS"," - BIOS zgodny ze specyfikacją UEFI\n - Możliwość, bez uruchamiania systemu operacyjnego z dysku twardego komputera lub innych podłączonych do niego urządzeń zewnętrznych odczytania z BIOS informacji o: \n      *  wersji BIOS, \n      * nr seryjnym komputera wraz z datą kompilacji BIOS, \n      * ilości i sposobu obłożenia slotów pamięciami RAM, \n      *  typie procesora wraz z informacją o ilości rdzeni, \n      *  pojemności zainstalowanego dysku twardego\n      *  rodzajach napędów optycznych\n      *  MAC adresie zintegrowanej karty sieciowej\n      * kontrolerze audio\n  - Funkcja blokowania wejścia do  BIOS oraz blokowania startu systemu operacyjnego, (gwarantujący utrzymanie zapisanego hasła nawet w przypadku odłączenia wszystkich źródeł zasilania i podtrzymania BIOS)\n  - Funkcja blokowania/odblokowania BOOT-owania stacji roboczej z zewnętrznych urządzeń  \n  - Możliwość polegająca na kontrolowaniu urządzeń wykorzystujących magistralę komunikacyjną PCI, bez uruchamiania systemu operacyjnego z dysku twardego komputera lub innych podłączonych do niego urządzeń zewnętrznych. Pod pojęciem kontroli Zamawiający rozumie funkcjonalność polegającą na blokowaniu/odblokowaniu slotów PCI.\n  - Możliwość, bez uruchamiania systemu operacyjnego z dysku twardego komputera lub innych, podłączonych do niego urządzeń zewnętrznych,  ustawienia hasła na poziomie systemu, administratora oraz dysku twardego oraz możliwość ustawienia następujących zależności pomiędzy nimi: brak możliwości zmiany hasła pozwalającego na uruchomienie systemu bez podania hasła administratora.\n - Możliwość włączenia/wyłączenia zintegrowanej karty dźwiękowej, karty sieciowej, portu równoległego, portu szeregowego z poziomu BIOS, bez uruchamiania systemu operacyjnego z dysku twardego komputera lub innych, podłączonych do niego, urządzeń zewnętrznych.\n - Możliwość założenie szyfrowanego hasła na dysk SSD (funkcja działająca osobno i niezależnie od haseł administratora/użytkownika UEFI) oparte o standard AES256\n - Możliwość ustawienia portów USB w trybie „no BOOT”, czyli podczas startu komputer nie wykrywa urządzeń bootujących typu USB, natomiast po uruchomieniu systemu operacyjnego porty USB są aktywne.\n - Możliwość selektywnego wyłączania podedynczych portów USB"]
[null,null,"Standardy i\ncertyfikaty","Certyfikat PN-EN ISO 9001:2015, PN-EN ISO14001:2015 oraz PN-ISO/IEC 27001:2014 lub nowsze na procesy projektowania, produkcję, sprzedaż i serwis,\nCertyfikat PN-EN ISO 50001:2018 \nCertyfikat TCO 08- parametr oceniany\nWYMIENIĆ POSIADANE CERTYFIKATY W KOLUMNIE OPIS WYKONAWCY \nCertyfikaty wymagane do złożenia wraz z ofertą"]
[null,null,"Wsparcie techniczne","Dedykowany portal techniczny producenta, umożliwiający Zamawiającemu zgłaszanie awarii oraz samodzielne zamawianie zamiennych komponentów. Możliwość sprawdzenia kompletnych danych o urządzeniu na jednej witrynie internetowej prowadzonej przez producenta (automatyczna identyfikacja komputera, konfiguracja bieżąca, data wygaśnięcia gwarancji, data produkcji komputera, dedykowane oprogramowanie). Wykonawca poda adres strony oraz sposób realizacji wymagania (opis uzyskania w/w informacji)."]
[null,null,"Pakiet oprogramowania biurowego","Rozszerzenie posiadanej i wykorzystywanej przez zamawiającego licencji na pakiet oprogramowania biurowego  \"MS Office Professional Plus 2019 EDU dla szkół i Uczelni lub oprogramowanie równorzędne. Licencja wieczysta (dożywotnia).  \nTenant do office:  officeapsl.onmicrosoft.com\n\nWymogi równorzedności zostały opisane w \"Przypisie 2\""]
[null,null,"System: ","Preinstalowany system operacyjny ver. 1,  klasy PC musi spełniać  wymagania według poniższego załącznika  (przypis 1) poprzez wbudowane mechanizmy, bez użycia dodatkowych aplikacji (np. Windows 11  prof. lub równoważny wg opisu )  w celu zapewnienia współpracy ze środowiskiem sieciowym oraz aplikacjami funkcjonującymi w środowisku Uczelni. Nie dopuszcza się w tym zakresie licencji pochodzącym z rynku wtórnego. Klucz licencyjny Windows 11 Professional lub równoważny musi być zapisany trwale w BIOS"]
[]
[{"$nulls":3},"Komputer stacjonarny ver. 3"]
[null,"1.03","Typ: ","komputer stacjonarny do obróbki grafiki "]
[null,null,"Procesor:"," - zgodny z architekturą x86 i x64 \n - Procesor osiągający w teście PassMark CPU Mark wynik \n    min. 32000 punktów Zamawiający będzie weryfikował ten parametr na podstawie \n    danych z drugiej kolumny tabeli z wynikami testów procesorów, które są załącznikiem \n    do SWZ \n - Procesor musi obsługiwać 64 bitowe systemy \n - Procesor do dedykowany obróbki graficznej"]
[null,null,"Ilość rdzeni:"," min. 20"]
[null,null,"Pamięć:","a) Min 32GB DDR5 min. 4000MHz.\nb) Możliwość rozbudowy do min 128GB.\nc) Min dwa sloty DIMM wolny."]
[null,null,"Napęd  optyczny: ","DVD+/-RW (możliwa jest dostawa napędu zewnetrznego USB)"]
[null,null,"Dysk: ","Min. 1024 GB SSD M.2 PCIe NVMe"]
[null,null,"Karta graficzna: ","Zintegrowana w procesorze, pozwalająca na osiągniecie rozdzielczości min. 4096 x 2160, umożliwiająca osiągniecie w teście PassMark G3D Mark wyniku średniego min. 1600 punktów wg strony: https://www.videocardbenchmark.net, minimum złącza 1 x DisplayPort, 1 x HDMI, 1 x D-Sub, umożliwiająca pracę dwumoniotorową"]
[{"$nulls":3},"Niezintegrowana, z obsługą dekodowania sprzętowego VP9 i HEVC\nObsługiwana przez DirectX w wersji co najmniej 12 i OpenGL w wersji co najmniej 4, pamięć GDDR7\nKarta graficzna musi osiągać w teście Passmark G3D Mark, w kategorii Average G3D Mark wynik co najmniej 28900 pkt. według wyników opublikowanych na stronie https://www.videocardbenchmark.net/gpu_list.php"]
[null,null,"Karta dźwiękowa:","dowolna, wej. mikrofonowe, wyj. słuchawkowe/ głośnikowe, wej. Liniowe"]
[null,null,"Komunikacja:","Zintegrowana z płytą główną, o prędkości 10/100/1000Mb/s. Dodatkowo karta sieciowa PCI-E WiFi 6, bluetooth 5.2"]
[null,null,"Rodzaje wejść / wyjść:","min. HDMI, RJ45, wyj. słuchawkowe, wej. mikrofonowe, wej. audio liniowe, USB, DisplayPort"]
[null,null,"Dod. funkcjonalność:","klawiatura USB QWERTY i  mysz optyczna producenta zestawu komputerowego, \nKażdy komputer powinien być oznaczony indywidualnym numerem seryjnym umieszonym na obudowie, oraz musi być wpisany na stałe w BIOS"]
[null,null,"BIOS"," - BIOS zgodny ze specyfikacją UEFI\n - Możliwość, bez uruchamiania systemu operacyjnego z dysku twardego komputera lub innych podłączonych do niego urządzeń zewnętrznych odczytania z BIOS informacji o: \n      *  wersji BIOS, \n      * nr seryjnym komputera wraz z datą kompilacji BIOS, \n      * ilości i sposobu obłożenia slotów pamięciami RAM, \n      *  typie procesora wraz z informacją o ilości rdzeni, \n      *  pojemności zainstalowanego dysku twardego\n      *  rodzajach napędów optycznych\n      *  MAC adresie zintegrowanej karty sieciowej\n      * kontrolerze audio\n  - Funkcja blokowania wejścia do  BIOS oraz blokowania startu systemu operacyjnego, (gwarantujący utrzymanie zapisanego hasła nawet w przypadku odłączenia wszystkich źródeł zasilania i podtrzymania BIOS)\n  - Funkcja blokowania/odblokowania BOOT-owania stacji roboczej z zewnętrznych urządzeń  \n  - Możliwość polegająca na kontrolowaniu urządzeń wykorzystujących magistralę komunikacyjną PCI, bez uruchamiania systemu operacyjnego z dysku twardego komputera lub innych podłączonych do niego urządzeń zewnętrznych. Pod pojęciem kontroli Zamawiający rozumie funkcjonalność polegającą na blokowaniu/odblokowaniu slotów PCI.\n  - Możliwość, bez uruchamiania systemu operacyjnego z dysku twardego komputera lub innych, podłączonych do niego urządzeń zewnętrznych,  ustawienia hasła na poziomie systemu, administratora oraz dysku twardego oraz możliwość ustawienia następujących zależności pomiędzy nimi: brak możliwości zmiany hasła pozwalającego na uruchomienie systemu bez podania hasła administratora.\n - Możliwość włączenia/wyłączenia zintegrowanej karty dźwiękowej, karty sieciowej, portu równoległego, portu szeregowego z poziomu BIOS, bez uruchamiania systemu operacyjnego z dysku twardego komputera lub innych, podłączonych do niego, urządzeń zewnętrznych.\n - Możliwość założenie szyfrowanego hasła na dysk SSD (funkcja działająca osobno i niezależnie od haseł administratora/użytkownika UEFI) oparte o standard AES256\n - Możliwość ustawienia portów USB w trybie „no BOOT”, czyli podczas startu komputer nie wykrywa urządzeń bootujących typu USB, natomiast po uruchomieniu systemu operacyjnego porty USB są aktywne.\n - Możliwość selektywnego wyłączania podedynczych portów USB"]
[null,null,"Standardy i\ncertyfikaty","Certyfikat PN-EN ISO 9001:2015, PN-EN ISO14001:2015 oraz PN-ISO/IEC 27001:2014 lub nowsze na procesy projektowania, produkcję, sprzedaż i serwis,\nCertyfikat PN-EN ISO 50001:2018 \nCertyfikat TCO 08- parametr oceniany\nWYMIENIĆ POSIADANE CERTYFIKATY W KOLUMNIE OPIS WYKONAWCY \nCertyfikaty wymagane do złożenia wraz z ofertą"]
[null,null,"Wsparcie techniczne","Dedykowany portal techniczny producenta, umożliwiający Zamawiającemu zgłaszanie awarii oraz samodzielne zamawianie zamiennych komponentów. Możliwość sprawdzenia kompletnych danych o urządzeniu na jednej witrynie internetowej prowadzonej przez producenta (automatyczna identyfikacja komputera, konfiguracja bieżąca, data wygaśnięcia gwarancji, data produkcji komputera, dedykowane oprogramowanie). Wykonawca poda adres strony oraz sposób realizacji wymagania (opis uzyskania w/w informacji)."]
[null,null,"Pakiet oprogramowania biurowego","Rozszerzenie posiadanej i wykorzystywanej przez zamawiającego licencji na pakiet oprogramowania biurowego  \"MS Office Professional Plus 2019 EDU dla szkół i Uczelni lub oprogramowanie równorzędne. Licencja wieczysta (dożywotnia).  \nTenant do office:  officeapsl.onmicrosoft.com\n\nWymogi równorzedności zostały opisane w \"Przypisie 2\""]
[null,null,"System: ","Preinstalowany system operacyjny ver. 1,  klasy PC musi spełniać  wymagania według poniższego załącznika  (przypis 1) poprzez wbudowane mechanizmy, bez użycia dodatkowych aplikacji (np. Windows 11  prof. lub równoważny wg opisu )  w celu zapewnienia współpracy ze środowiskiem sieciowym oraz aplikacjami funkcjonującymi w środowisku Uczelni. Nie dopuszcza się w tym zakresie licencji pochodzącym z rynku wtórnego. Klucz licencyjny Windows 11 Professional lub równoważny musi być zapisany trwale w BIOS"]
[]
[{"$nulls":3},"Monitor ver. 1"]
[null,"1.04","Przekątna ekranu","w przedziale  27\" - 28\"  "]
[null,null,"Powłoka matrycy","Matowa"]
[null,null,"Rodzaj matrycy","LED,IPS"]
[null,null,"Rozdzielczość ekranu","1920 x 1080 (FullHD)"]
[null,null,"Rodzaje wejść / wyjść (min.)","Wyjście audio - 1 szt."]
[{"$nulls":3},"min. HDMI - 1 szt."]
[null,null,"Głośniki","Tak"]
[null,null,"Dodatkowe informacje","Możliwość montażu na ścianie - VESA"]
[{"$nulls":3},"kolor obudowy: czarny"]
[{"$nulls":3},"Regulacja kąta pochylenia (Tilt)"]
[null,null,"Inne","Otwory montażowe w obudowie VESA "]
[{"$nulls":3},"Komplet kabli: graficzne ( HDMI), zasilające, audio"]
[]
[{"$nulls":3},"Monitor ver. 2"]
[null,"1.05","Przekątna ekranu","w przedziale  30\" - 32\""]
[null,null,"Powłoka matrycy","Matowa"]
[null,null,"Rodzaj matrycy","LED, IPS"]
[null,null,"Rozdzielczość ekranu","min. 3840 x 2160 (4K)"]
[null,null,"Rodzaje wejść / wyjść (min.)","Wyjście audio - 1 szt."]
[{"$nulls":3},"min. HDMI - 1 szt."]
[{"$nulls":3},"min.DisplayPort 1.2 - 1  szt. "]
[null,null,"Głośniki","Tak"]
[null,null,"Dodatkowe informacje","Możliwość montażu na ścianie - VESA"]
[{"$nulls":3},"kolor obudowy: czarny"]
[{"$nulls":3},"Regulacja kąta pochylenia (Tilt)"]
[null,null,"Inne","Otwory montażowe w obudowie VESA "]
[{"$nulls":3},"Komplet kabli: graficzne ( HDMI, DP ), zasilające, audio"]
[]
[{"$nulls":3},"Laptop ver. 1"]
[null,"1.06","typ","Komputer przenośny typu  laptop. Przeznaczony dla potrzeb pracy na programach graficznych, aplikacji biurowych, aplikacji edukacyjnych, aplikacji obliczeniowych, dostępu do Internetu oraz poczty elektronicznej, jako lokalna baza danych, stacja programistyczna.\nUrządzenie klasy biznes."]
[null,null,"Procesor"," - zgodny z architekturą x86 i x64"]
[{"$nulls":3}," - osiągający, co najmniej 13000 punktów w teście wydajnościowym PassMark CPU Benchmarks wg. kolumny Passmark CPU Mark, Zamawiający będzie weryfikował ten parametr na podstawie danych z drugiej kolumny tabeli z wynikami testów procesorów, które są załącznikiem do SWZ"]
[null,null,"Pamięć RAM","min 16 GB "]
[null,null,"ilość rdzeni","min. 6"]
[null,null,"Dysk ","min. SSD 512 GB"]
[null,null,"Typ ekranu","Matowy, LED WVA lub IPS"]
[null,null,"Przekątna ekranu","15,6\""]
[null,null,"Rozdzielczość ekranu","min. 1920 x 1080 (FullHD)"]
[null,null,"Karta graficzna","zintegrowana z procesorem i obsługą dekodowania sprzętowego VP9 i HEVC"]
[null,null,"Dźwięk","Zintegrowana karta dźwiękowa zgodna z Intel High Definition Audio"]
[{"$nulls":3},"Wbudowane dwa mikrofony"]
[{"$nulls":3},"Wbudowane głośniki stereo"]
[null,null,"Kamera internetowa","min. 0,92 Mpix"]
[null,null,"Łączność","LAN 10/100/1000 Mbps - dopuszczalna jest karta zewnętrzna (przejściówka)"]
[{"$nulls":3},"min. Wi-Fi 5"]
[{"$nulls":3},"Moduł Bluetooth (ver. min. 5.0)"]
[null,null,"Rodzaje wejść / wyjść","min. USB 3.2 Gen.1"]
[{"$nulls":3},"min. USB Typu-C"]
[{"$nulls":3},"min. HDMI"]
[{"$nulls":3},"min. USB 2.0 "]
[{"$nulls":3},"Wyjście słuchawkowe/wejście mikrofonowe "]
[null,null,"dodatkowe wypos./funkc.","Torba, mysz bezprzewodowa (mała), "]
[{"$nulls":3},"Kolor czarny lub szary"]
[{"$nulls":3},"Wydzielona klawiatura numeryczna"]
[null,null,"Pakiet oprogramowania biurowego","Rozszerzenie posiadanej i wykorzystywanej przez zamawiającego licencji na pakiet oprogramowania biurowego  \"MS Office Professional Plus 2019 EDU dla szkół i Uczelni lub oprogramowanie równorzędne. Licencja wieczysta (dożywotnia).  \nTenant do office:  officeapsl.onmicrosoft.com\n\nWymogi równorzedności zostały opisane w \"Przypisie 2\""]
[null,null,"zainstalowany system operacyjny","Preinstalowany system operacyjny ver. 1,  klasy PC musi spełniać  wymagania według poniższego załącznika  (przypis 1) poprzez wbudowane mechanizmy, bez użycia dodatkowych aplikacji (np. Windows 11  prof. lub równoważny wg opisu )."]
[]
[{"$nulls":3},"Laptop ver. 2"]
[null,"1.07","typ","Komputer przenośny typu  laptop. Przeznaczony dla edycji grafiki"]
[null,null,"Procesor"," - zgodny z architekturą x86 i x64"]
[{"$nulls":3}," - osiągający, co najmniej 19000 punktów w teście wydajnościowym PassMark CPU Benchmarks "]
[null,null,"Pamięć RAM","min. 16 GB "]
[null,null,"Dysk twardy","min. SSD 1 TB"]
[null,null,"Ilość rdzeni",6]
[null,null,"Typ ekranu","Matowy, LED WVA lub IPS"]
[null,null,"Przekątna ekranu","min. 14"]
[null,null,"Rozdzielczość ekranu","min. 1920 x 1080 (FHD)"]
[null,null,"Karta graficzna","zintegrowana z procesorem oraz druga dedykowana z obsługą dekodowania sprzętowego VP9 i HEVC"]
[null,null,"Dźwięk","Zintegrowana karta dźwiękowa"]
[{"$nulls":3},"Wbudowany mikrofon"]
[{"$nulls":3},"Wbudowane głośniki stereo"]
[null,null,"Kamera internetowa","Rozdzielczość: 1920 x 1080 pikseli "]
[null,null,"Łączność","min. Wi-Fi 6"]
[{"$nulls":3},"LAN 10/100 Mbps"]
[{"$nulls":3},"Moduł Bluetooth"]
[null,null,"Rodzaje wejść / wyjść","HDMI"]
[{"$nulls":3},"Wyjście słuchawkowe/wejście mikrofonowe "]
[{"$nulls":3},"min. USB 2.0 - 1 szt."]
[{"$nulls":3},"Wbudowany czytnik kart pamięci lub wysokiej jakości zewnętrznym czytnikiem kart pamięci podłączanym przez port USB  "]
[{"$nulls":3},"min. USB 3.2 Gen. 1 "]
[null,null,"Dodatkowe informacje","w zestawie z 3-portowym hubem USB 3.0"]
[{"$nulls":3},"Podświetlenie klawiatury kolorem białym"]
[{"$nulls":3},"Przejściówkaz portem HDMI i VGA"]
[{"$nulls":3},"Torba, mysz bezprzewodowa (mała, zasilana z akumulatora i ładowana przez USB)"]
[null,null,"Pakiet oprogramowania biurowego","Rozszerzenie posiadanej i wykorzystywanej przez zamawiającego licencji na pakiet oprogramowania biurowego  \"MS Office Professional Plus 2021 EDU dla szkół i Uczelni lub oprogramowanie równorzędne. Licencja wieczysta (dożywotnia).  \nTenant do office:  officeapsl.onmicrosoft.com\n\nWymogi równorzedności zostały opisane w \"Przypisie 2\""]
[null,null,"zainstalowany system operacyjny","Preinstalowany system operacyjny ver. 1,  klasy PC musi spełniać  wymagania według poniższego załącznika  (przypis 1) poprzez wbudowane mechanizmy, bez użycia dodatkowych aplikacji (np. Windows 11  prof. lub równoważny wg opisu )."]
[]
[{"$nulls":3},"Laptop ver. 3"]
[null,1.08,"typ","Komputer przenośny typu  laptop. Przeznaczony dla potrzeb pracy na programach graficznych, aplikacji biurowych, aplikacji edukacyjnych, aplikacji obliczeniowych, dostępu do Internetu oraz poczty elektronicznej."]
[null,null,"Procesor"," - zgodny z architekturą x86 i x64"]
[{"$nulls":3}," - osiągający, co najmniej 15000 punktów w teście wydajnościowym PassMark CPU Benchmarks wg. kolumny Passmark CPU Mark, Zamawiający będzie weryfikował ten parametr na podstawie danych z drugiej kolumny tabeli z wynikami testów procesorów, które są załącznikiem do SWZ"]
[null,null,"Pamięć RAM","min 16 GB "]
[null,null,"ilość rdzeni","min. 8"]
[null,null,"Dysk ","min. SSD 512 GB"]
[null,null,"Typ ekranu","Dotykowy"]
[null,null,"Przekątna ekranu","14\""]
[null,null,"Rozdzielczość ekranu","min. 2880 x 1800"]
[null,null,"Karta graficzna","Dowolna"]
[null,null,"Dźwięk","Zintegrowana karta dźwiękowa"]
[{"$nulls":3},"Wbudowane dwa mikrofony"]
[{"$nulls":3},"Wbudowane głośniki stereo"]
[null,null,"Kamera internetowa","min. 0,92  Mpix"]
[null,null,"Łączność","Wi-Fi "]
[{"$nulls":3},"Moduł Bluetooth (ver. min. 5.0)"]
[null,null,"Rodzaje wejść / wyjść","min. USB 3. Gen. 1"]
[{"$nulls":3},"min. USB Typu-C (z DisplayPort i Power Delivery) "]
[{"$nulls":3},"min. HDMI "]
[{"$nulls":3},"Wyjście słuchawkowe/wejście mikrofonowe "]
[null,null,"dodatkowe wypos./funkc.","Torba, mysz bezprzewodowa, przejściówka HDMI -> VGA"]
[{"$nulls":3},"Podświetlenie klawiatury kolorem białym"]
[null,null,"Pakiet oprogramowania biurowego","Rozszerzenie posiadanej i wykorzystywanej przez zamawiającego licencji na pakiet oprogramowania biurowego  \"MS Office Professional Plus 2019 EDU dla szkół i Uczelni lub oprogramowanie równorzędne. Licencja wieczysta (dożywotnia).  \nTenant do office:  officeapsl.onmicrosoft.com\n\nWymogi równorzedności zostały opisane w \"Przypisie 2\""]
[null,null,"zainstalowany system operacyjny","Preinstalowany system operacyjny ver. 1,  klasy PC musi spełniać  wymagania według poniższego załącznika  (przypis 1) poprzez wbudowane mechanizmy, bez użycia dodatkowych aplikacji (np. Windows 11  prof. lub równoważny wg opisu )."]
[]
[{"$nulls":3},"Stacja dokująca ver. 1"]
[null,"1.09","Typ","Stacja dokująca"]
[null,null,"Kompatybilność","Uniwersalny"]
[null,null,"Interfejs","USB-C"]
[null,null,"Rodzaje wejść / wyjść","USB 3.1 Typ A - min. 2 szt."]
[{"$nulls":3},"USB 3.0 Typ C (zasilanie) - 1 szt."]
[{"$nulls":3},"HDMI - min. 1 szt."]
[{"$nulls":3},"RJ-45 (LAN) - 1 szt."]
[{"$nulls":3},"DisplayPort - 1 szt."]
[{"$nulls":3},"Czytnik kart pamięci SD "]
[null,null,"Zasilanie","USB"]
[null,null,"Moc ładowania","Power Delivery min. 100W"]
[null,null,"Dodatkowe informacje","Obsługa monitora Ultra HD 4K"]
[{"$nulls":3},"Plug & Play"]
[{"$nulls":3},"Wake on LAN"]
[{"$nulls":3},"Kompatybilność ze standardem Thunderbolt 3"]
[{"$nulls":3},"Aluminiowa obudowa"]
[{"$nulls":3},"DisplayPort Alternate Mode"]
[]
[{"$nulls":3},"Komputer typu tablet wraz z klawiaturą oraz rysikeim"]
[null,"1.10","Typ urządzenia","Tablet"]
[null,null,"Rozmiar ekranu",13]
[null,null,"Technologia panelu","LED lub QLED"]
[null,null,"Rozdzielczość ekranu","2732 × 2048 pikseli"]
[null,null,"Jasność maksymalna","min. 600 nitów"]
[null,null,"Procesor","8-rdzeniowy układ ARM nowej generacji z wbudowanym układem graficznym i jednostką AI"]
[null,null,"Pamięć RAM","ok. 20 W"]
[null,null,"Złącza:","8 GB"]
[null,null,"Pamięć wewnętrzna","256 GB (bez możliwości rozszerzenia)"]
[null,null,"Łączność bezprzewodowa","Wi-Fi 6E (802.11 a/b/g/n/ac/ax)\n Bluetooth 5.3"]
[null,null,"Złącza","USB typu C (min. USB 3.0, obsługa OTG)"]
[null,null,"Kolor obudowy:","Fioletowy"]
[null,null,"Aparaty","Tylny: 12 MP, autofocus, nagrywanie wideo 4K (60 fps), cyfrowy zoom 5x\nPrzedni: 12 MP, szerokokątny, nagrywanie Full HD"]
[null,null,"System operacyjny","Nowoczesny autorski system mobilny od producenta z obsługą wielozadaniowości, rysika i klawiatury"]
[null,null,"Wymiary (SxWxG)","1673x1048x341 mm (z podstawą), 1673x958x60 mm (bez podstawy)"]
[null,null,"Typ urządzenia","Klawiatura z gładzikiem do tabletu"]
[null,null,"Kompatybilność","Tablet z ekranem 13\" i złączem USB-C, obsługujący zewnętrzne akcesoria przez złącze magnetyczne lub Smart Connector"]
[null,null,"Układ klawiatury","Pełnowymiarowy, wyspowy, 14-klawiszowy rząd funkcyjny (m.in. jasność, głośność, wyszukiwanie, tryb Nie przeszkadzać)"]
[null,null,"Mechanizm klawiszy","Nożycowy, skok 1 mm"]
[null,null,"Typ urządzenia","Rysik aktywny do tabletu z ekranem dotykowym"]
[null,null,"Zasilanie"," Wbudowany akumulator ładowany indukcyjnie"]
[null,null,"Lokalizacja","Obsługa funkcji lokalizacji przez system operacyjny tabletu"]
[null,null,"Typ urządzenia","Stacja dokująca"]
[null,null,"Porty","USB 3.0 , HDMI, Wejście / wyjście audio, RJ45"]
[]
[{"$nulls":3},"Zewnętrzny dysk twardy"]
[null,"1.11","Pojemność","2000 GB"]
[null,null,"Interfejs","USB 3.2 Gen. 1"]
[null,null,"Złącza","USB Micro-B"]
[null,null,"Dodatkowe informacje","Aluminiowa obudowa"]
[{"$nulls":3},"Seagate Rescue Services (usługi odzyskiwania danych)"]
[{"$nulls":3},"Automatyczna synchronizacja"]
[null,null,"Dołączone akcesoria","Kabel USB"]
[{"$nulls":3},"Instrukcja obsługi"]
[null,null,"Kolor","Czarny"]
[null,null,"Wysokość","ok. 12.6  mm"]
[null,null,"Szerokość","ok. 115.3 mm"]
[null,null,"Głębokość","ok. 80 mm"]
[null,null,"Waga","ok. 159 g"]
[]
["  ",null,null,"Zewnętrzny dysk SSD"]
[null,"1.12","Rodzaj dysku","zewnętrzny SSD "]
[null,null,"Pojemność","min. 1000 GB (1TB)"]
[null,null,"Interfejs","USB 3.2 Gen. 2 x 2"]
[null,null,"Złącza","USB Type-C"]
[null,null,"Dołączone akcesoria","Kabel USB-C"]
[{"$nulls":3},"Kabel USB-C > USB-A"]
[null,null,"Wysokość","ok. 12,3 mm"]
[null,null,"Szerokość","ok. 35 mm"]
[null,null,"Głębokość","ok. 65 mm"]
[null,null,"Waga","ok. 31 g"]
[]
[{"$nulls":3},"Dysk SSD 512 GB"]
[null,"1.13","Pojemność","512 GB"]
[null,null,"Format","2.5\""]
[null,null,"Interfejs","2,5\" SATA III"]
[null,null,"Prędkość odczytu (maksymalna)","min. 550 MB/s"]
[null,null,"Prędkość zapisu (maksymalna)","min. 500 MB/s"]
[null,null,"Rodzaj kości pamięci","TLC"]
[null,null,"Niezawodność MTBF","min. 2 000 000 godz"]
[]
[{"$nulls":3},"Dysk SSD 1000 GB (1TB) M.2 "]
[null,"1.14","Pojemność","1000 GB"]
[null,null,"Format","M.2"]
[null,null,"Interfejs","M.2 PCIe NVMe 4.0 x4"]
[null,null,"Prędkość odczytu (maksymalna)","min. 4000 MB/s"]
[null,null,"Prędkość zapisu (maksymalna)","min. 4000 MB/s"]
[null,null,"Odczyt losowy","min.  600,000 IOPS"]
[null,null,"Zapis losowy","min. 750,000 IOPS"]
[null,null,"Współczynnik TBW",600]
[null,null,"Niezawodność MTBF","min.  1 400 000 godz"]
[]
[{"$nulls":3},"Dysk SSD 512 GB M.2 "]
[null,"1.15","Pojemność","512 GB"]
[null,null,"Format","M.2"]
[null,null,"Interfejs","M.2 PCIe NVMe 3.0 x4"]
[null,null,"Prędkość odczytu (maksymalna)","min. 3300 MB/s"]
[null,null,"Prędkość zapisu (maksymalna)","min. 2400 MB/s"]
[null,null,"Odczyt losowy","min.  200,000 IOPS"]
[null,null,"Zapis losowy","min. 256,000 IOPS"]
[null,null,"Współczynnik TBW","250TB"]
[null,null,"Niezawodność MTBF","min.  1 500 000 godz"]
[]
[{"$nulls":3},"Dysk SSD 1TB"]
[null,"1.16","Pojemność","1000 GB"]
[null,null,"Format","2.5\""]
[null,null,"Interfejs","2,5\" SATA"]
[null,null,"Prędkość odczytu (maksymalna)","min. 550 MB/s"]
[null,null,"Prędkość zapisu (maksymalna)","min. 510 MB/s"]
[null,null,"Rodzaj kości pamięci","TLC"]
[null,null,"Niezawodność MTBF","min.  1 500 000 godz"]
[]
[{"$nulls":3},"Klawiatura i myszka bezprzewodowa ver.1"]
[null,"1.17","Rodzaj przełączników","Mechaniczna"]
[null,null,"Typ","Multimedialna"]
[{"$nulls":3},"Niskoprofilowa"]
[null,null,"Łączność","Bezprzewodowa"]
[null,null,"Interfejs","2,4 GHz"]
[{"$nulls":3},"Bluetooth"]
[null,null,"Klawisze numeryczne","Tak"]
[null,null,"Klawisze multimedialne / funkcyjne","Tak"]
[null,null,"Mysz w zestawie","Tak"]
[null,null,"Złącza","USB-C"]
[null,null,"Sensor myszy","Optyczny"]
[null,null,"Rozdzielczość myszy","8000 DPI"]
[null,null,"Obudowa","aluminiowa"]
[null,null,"Dodatkowe informacje","Wbudowana bateria"]
[{"$nulls":3},"Kabel do ładowania USB-A -> USB - C"]
[]
[]
[{"$nulls":3},"Zestaw Klawiatura + Mysz ver.2"]
[null,"1.18","Typ klawiatury:","Niskoprofilowa "]
[null,null,"Układ klawiszy:","US "]
[null,null,"Komunikacja z komputerem:","Bezprzewodowa "]
[null,null,"Interfejs:","2.4 GHz, Bluetooth "]
[null,null,"Klawisze multimedialne","Tak"]
[null,null,"Klawisze numeryczne","Tak"]
[null,null,"Rodzaj przełączników","Membranowe "]
[null,null,"Kolor","Czarny/biały"]
[null,null,"Mysz"]
[null,null,"Profil myszy","praworęczny lub uniwersalny"]
[null,null,"Rozdzielczość myszy","min. 2000 dpi"]
[null,null,"Rodzaj zasilania","Akumulatorowe "]
[null,null,"Wyświetlacz","Tak"]
[null,null,"Praca w sieci przewodowej","Możliwość podłączenia myszy przewodowo  do ładowania jak i do komputera"]
[null,null,"Wysokość [cm]","ok. 33.8"]
[null,null,"Szerokość [cm]","ok. 54.5"]
[null,null,"Głębokość [cm]","ok. 59.9"]
[null,null,"Kolor","Czarny lub biały"]
[]
[{"$nulls":3},"Switch  zarządzalny ver 2"]
[null,"1.19","Przełącznik zarządzalny 1U zgodny z urządzeniami sieciowymi Zamawiającego który używa Aruba 2540 24G 4SFP+ Switch.  "]
[null,null,"Obudowa ","Wysokość 1U z szynami umożliwiającymi instalację w szafie rack z \n24 RJ-45 auto-negotiating 10/100/1000 ports 1000BASE-T "]
[null,null,"Routing/Switching ","Layer 3 Dynamic "]
[null,null,"Throughput ","Min. 95.2 Mpps "]
[null,null,"Switching Capacity ","Min. 128 Gbps "]
[null,null,"Routing Table Size ","Min.:2000 entries (IPv4), 1000 entries (IPv6) "]
[null,null,"MAC Address Table Size ","Min. 16384 entries "]
[null,null,"SFP+ Ports ","Min. 4 SFP+ 1/10GbE ports; "]
[null,null,"Console Port ","1 dual-personality (RJ-45 or USB micro-B) serial console port "]
[null,null,"Zarządzanie ","Network Management; Command-line interface; Web browser "]
[null,null,"1000 Mb Latency ","< 3.8 µs (64-byte packets) "]
[null,null,"10 Gbps Latency ","< 1.6 µs (64-byte packets) "]
[null,null,"Zużycie energii ","Max. 29.3 W "]
[null,null,"Wymiary ","Standard RACK 19U "]
[null,null,"Dodatkowe wyposażenie ","2 szt.  \"10G SFP+ to SFP+ 1m DAC Cable\" "]
[null,null,"Transceiver 10-Gigabit w obudowie SFP+ obsługujący standard 10-Gigabit LR (np.. HP J9151E )"]
[null,null,"Maksymalna szybkość przesyłania danych  ","10 000  Mbit/s"]
[null,null,"Ilość","2 szt."]
[null,null,"Technologia łączności","Wired, Single Mode (jednomodowe)"]
[null,null,"Zasięg portu","10 km"]
[null,null,"Długość fali  ","1310  nm"]
[null,null,"Zakres temperatur ","-40 - 85  °C"]
[null,null,"Standardowe rozwiązania komunikacyjne  ","1 x 10GBase-LR"]
[null,null,"Rozmiar układu  ","SFP+  "]
[null,null,"Złącze(a)","LC / UPC "]
[null,null,"Pełny dupleks  ","Tak  "]
[null,null,"Typ przewodu  ","światłowód"]
[]
[{"$nulls":3},"UPS"]
[null,"1.20","Interfejs","USB"]
[null,null,"Moc pozorna [VA]",1600]
[null,null,"Moc skuteczna [W]",900]
[null,null,"Napięcie wejściowe (zakres)","140-300"]
[null,null,"Czas przełączania [ms]",6]
[null,null,"Sygnalizacja pracy","Dioda LED, Dźwiękowa "]
[null,null,"Topologia","Line-interactive "]
[null,null,"Zabezpieczenia","Automatyczna regulacja napięcia (AVR), Autotest, Przeciwprzepięciowe "]
[]
[{"$nulls":3},"Obudowa do dysku USB 3.2 - SSD/NVMe M.2"]
[null,"1.21","Typ produktu","Zewnętrzne"]
[null,null,"Rozmiar","M.2 2280, M.2 2260, M.2 2242, M.2 2230"]
[null,null,"Maksymalny format druku:","A4 "]
[null,null,"Interfejs dysku","M.2 NVMe"]
[null,null,"Interfejs obudowy","USB 3.2 Gen 2 (Typu-C)"]
[null,null,"Szybkość transmisji danych","10 Gbps"]
[null,null,"Materiał obudowy","Aluminium"]
[null,null,"Kolor","Czarny"]
[null,null,"Kolor obudowy","Biały"]
[null,null,"Wysokość [mm]","ok. 12"]
[null,null,"Szerokość [mm]","ok. 37"]
[null,null,"Głębokość [mm]","ok.  124"]
[null,null,"Waga [g]","ok, 70"]
[null,null,"Dodatkowe informacje","Dioda LED"]
[]
[{"$nulls":3},"Adapter Bluetooth"]
[null,"1.22","Interfejs","USB 2.0"]
[null,null,"Standard","Bluetooth V5.0"]
[null,null,"Wysokość","ok. 7mm"]
[null,null,"Szerokość","ok. 15mm"]
[null,null,"Długość","ok. 19mm"]
[]
[{"$nulls":3},"Czytnik kart pamięci"]
[null,"1.23","Interfejs","USB Typu-C"]
[null,null,"Obsługiwane karty","CF/CFII/Ultra CF/MD; SD/Mini-SD/SDC;  MMC/MMCII/Ultra MMC/RS-MMC;  XD;  MS/MS-MG; T-Flash"]
[null,null,"Przepustowość transmisji","do 12 Mb/s"]
[null,null,"Kolor","Czarny"]
[null,null,"Wskaźnik zasilania","Dioda LED"]
[]
[{"$nulls":3},"Przewód Ethernet - Patchcord"]
[null,"1.24","Kat.","Przewód Ethernet - Patchcord"]
[null,null,"Długość","4m"]
[null,null,"Wtycznka","RJ45"]
[null,null,"Rodzaj wtyku","Męski"]
[null,null,"Osłony zabezpieczające przed złamaniem","Tak"]
[null,null,"Przepustowość","1 Gb/s"]
[]
[{"$nulls":3},"Stacja dokująca ver. 2"]
[null,"1.25","Opis","Stacja dokująca do urządzenia posiadanego przez zamawiającego MS Surface Pro"]
[null,null,"Interfejs","Surface Connect"]
[null,null,"Typ","Aktywny"]
[null,null,"Dodatkowe informacje","Dźwięk combo, Funkcja Power Delivery, Kensington Lock, Kompatybilność ze standardem Thunderbolt 3, Obsługa 2 monitorów 4K 60Hz, Plug&Play"]
[null,null,"Liczba portów wyjściowych","8 szt."]
[null,null,"Liczba portów ładujących","6 szt."]
[null,null,"Obsługiwane standardy USB","USB 3.2 Gen. 2 (10 Gb/s), USB Typu C 3.2 Gen. 2 (10 Gb/s)"]
[null,null,"Porty wyjścia","RJ-45 (LAN) – 1 szt., USB 3.2 Gen. 2 – 2 szt., USB Typu C 3.2 Gen. 2 – 4 szt., Wyjście słuchawkowe/wejście mikrofonowe 3.5 mm – 1 szt."]
[null,null,"Porty ładujące","USB 3.1: 7.5W, USB-C 3.1: 15W, USB-C 3.1: 7.5W"]
[null,null,"Zasilanie","Sieciowe"]
[null,null,"Kolor","Czarny"]
[null,null,"Dołączone akcesoria","Zasilacz"]
[null,null,"Długość kabla","min. 0.8 m"]
[]
[{"$nulls":3},"Tester LAN"]
[null,"1.26","Rodzaj towaru","Tester LAN (n.. FS8114 Forscher)"]
[null,null,"Złącza","RJ-45"]
[null,null,"Wykonywane testy","Badanie długości przewodu, pomiar napięcia PoE, sprawdzanie par, szukanie portu, wyszukiwanie i sprawdzanie PoE, wyszukiwanie przewodów"]
[null,null,"Testowane typy przewodów","UTP / FTP"]
[null,null,"Sposób pomiaru","Metoda pojemnościowa"]
[null,null,"Długość testowanego przewodu \n– min.","0,1 m"]
[null,null,"Długość testowanego przewodu \n– maks.","2000 m"]
[null,null,"Język menu","Polski, angielski"]
[null,null,"Zasilanie – napięcie","9 V DC"]
[null,null,"Zasilanie – bateria","Tak"]
[]
[{"$nulls":3},"Dmuchawa wielofunkcyjna"]
[null,"1.27","Opis","Serwisowa dmuchawa wielofunkcyjna (np. KiCA Jetfan 2 Kit)"]
[null,null,"Port ładowania","USB-C"]
[null,null,"Napięcie robocze","12,8 ∼ 16,8 V"]
[null,null,"Czas ładowania","ok. 3,5 h"]
[null,null,"Czas pracy na jednym ładowaniu","do 4,5 h"]
[null,null,"Pojemność akumulatora","1100 mAh"]
[null,null,"Siła wydmuchu powietrza","do 20 m/s"]
[null,null,"Wymiary","71,9 × 37,4 × 128,9 mm"]
[null,null,"Waga","302 g"]
[null,null,"Zawartość zestawu","2 wkręcane końcówki zwężające wylot powietrza, przewód USB-A / USB-C"]
[]
[{"$nulls":3},"Zestaw zaciskarka do konówek ethernet "]
[null,"1.28","Zakres zaciskania","4P2C / 4P4C RJ22, 6P2C / 6P4C / 6P6C RJ11, 8PPC RJ45"]
[null,null,"Pokrowiec w zestawie","Tak"]
[null,null,"Zawartość zestawu","Zaciskarka do końcówek ethernet\nStripper do przewodów\nEtui\n"]
[]
[]
[{"$nulls":3},"Linka zabezpieczająca do laptopa"]
[null,"1.29","Rodzaj","Linka zabezpieczająca "]
[null,null,"Typ zamka","Kluczowy"]
[null,null,"Kolor","Srebrny"]
[null,null,"Długość","1,8m"]
[]
[{"$nulls":3},"Tester przewodów i sieci WI-fi"]
[null,"1.30","Masa","ok. 624 g"]
[null,null,"Bateria/akumulator","Minimum 6400 mAh"]
[{"$nulls":3}," Minimum 8 godzin"]
[{"$nulls":3},"Zakres temperatur ładowania: Od 0°C do +40°C"]
[null,null,"Interfejs hosta","USB typu C"]
[null,null,"Wyświetlacz","Minimum 800 x 480 kolorów, pojemnościowy ekran wielodotykowy"]
[null,null,"Wymiary","ok. 22 cm x 11 cm"]
[null,null,"Wibracje","Tak"]
[null,null,"Odporność na upadek","Minimum  Upadek z wysokości 1 m, 6 boków"]
[null,null,"Protokoły diagnostyczne","LLDP, CDP, FLP, ICMP, DHCP"]
[null,null,"Konfiguracja IP","Ręczna lub DHCP dla IPv4/IPv6"]
[null,null,"Ping testowy IP","Czasy reakcji, średnia, DNS, brama, utracone pakiety"]
[null,null,"Zgodność z PoE","IEEE 802.3af/at/bt, negocjacja sprzętowa i programowa"]
[null,null,"Diagnostyka PoE","Klasa zasilania (0–8), dostępna moc, pary, podpisy"]
[null,null,"Pomiary PoE","Napięcie i moc pod obciążeniem"]
[null,null,"Miganie portu","Tak"]
[null,null,"Port testowy","RJ45 ekranowany, 8-stykowy"]
[null,null,"Autotesty","10GBASE-T do 10BASE-T, mapa przewodów, 6 s < 70 m"]
[null,null,"Typy kabli","Skrętka UTP/STP, 2 lub 4 pary"]
[null,null,"Testy mapy przewodów","Długość, rozdzielone pary, T568A/B, krosowanie, 1 s < 120 m"]
[null,null,"Długość maksymalna","ok. 305 m"]
[null,null,"NVP","Ustawiana przez użytkownika"]
[null,null,"Generator tonów","Cyfrowe i analogowe zgodne z IntelliTone i ogólnymi sondami"]
[null,null,"Zdalne identyfikatory","Do 7 unikatowych portów/gniazd"]
[null,null,"Wi-Fi (modele Duo)","802.11b/g/n/ac/ax, 2.4/5/6 GHz, 802.11be-ready"]
[null,null,"Testy Wi-Fi","BSSID, siła sygnału, zabezpieczenia, kanały, pasma"]
[]
[]
[{"$nulls":3},"UPS Rack do szafy dystrybucyjnej 3kv"]
[null,"1.31","Topologia","Online"]
[null,null,"Moc pozorna","3000 VA"]
[null,null,"Moc skuteczna","2400 W"]
[null,null,"Napięcie wejściowe","115 – 300 V"]
[null,null,"Kształt napięcia wyjściowego","Sinusoidalny"]
[null,null,"Pojemność baterii","42 Ah"]
[null,null,"Gniazda wyjściowe","1 × IEC, 2 × Schuko"]
[null,null,"Czas przełączania","0 ms"]
[null,null,"Interfejs komunikacyjny","RS-232"]
[null,null,"Zabezpieczenia","Przeciwzwarciowe, przeciążeniowe, przeciwprzepięciowe"]
[null,null,"Sygnalizacja pracy","Wyświetlacz LCD"]
[null,null,"Typ obudowy","Rack"]
[]
[{"$nulls":3},"Router do szafy dystrybucyjnej"]
[null,"1.32","Tryb pracy","Router (np. MikroTik RB4011IGS+RM)"]
[null,null,"Rodzaj urządzenia","Router przewodowy"]
[null,null,"Porty LAN","10 × RJ-45 10/100/1000"]
[null,null,"Port szeregowy","1 × RS-232"]
[null,null,"Złącze zasilania","1 szt."]
[null,null,"Port SFP+","1 × 10 Gigabit"]
[null,null,"Obsługiwane standardy","IEEE 802.3at"]
[null,null,"Zarządzanie","Strona WWW, CLI (wiersz poleceń)"]
[null,null,"Dodatkowe funkcje","18–57 V Passive PoE, AES, Reset, montaż RACK"]
[null,null,"Pamięć RAM","1 GB"]
[null,null,"Pamięć Flash","512 MB"]
[null,null,"Ochrona","IP20"]
[]
[{"$nulls":3},"Urządzenie NAS z dyskami"]
[null,"1.33","Obudowa","Min. 12-dyskowa, rack 2U, "]
[null,null,"Pamięć","Zainstalowane min. 8GB z możliwością rozbudowy do min.32GB"]
[null,null,"Dyski","Zainstalowane 12 dysków o pojemności min. 2TB kompatybilne  z serwerem NAS, oferowane dyski muszą być widnieć jako kompatybilne na stronie producenta oferowanego urządzenia NAS"]
[null,null,"Zasilanie","Redundantne, moc zasilaczy min. 400W"]
[null,null,"Pule dyskowe","Tak"]
[null,null,"Migawki ","Min.: 256 dla woluminu, 256 dla LUN, w sumie min. 512 na urządzenie"]
[null,null,"Backup","Oprogramowanie do backupu autorstwa producenta urządzenia z nieograniczoną liczbą licencji na końcówki, które umożliwia synchronizowanie wybranych katalogów w czasie rzeczywistym na serwer lub przesyłanie ich zgodnie z ustalonym harmonogramem."]
[null,null,"Cache","Możliwość instalacji dysków SSD przeznaczonych do cache montowanych wewnątrz obudowy na złączach mSata "]
[null,null,"Dyski","Min. SATA III 3,5” i 2,5”, kieszenie na dyski zamykane na kluczyk"]
[null,null,"Złącza sieciowe","Min. 4 x 1 GbE RJ45, 1 port 10GbE (SFP+), "]
[null,null,"Złącza USB","Min. 2x USB 3.0"]
[null,null,"Replikacja","Replikacja między urządzeniami w czasie rzeczywistym"]
[null,null,"Kontroler domeny","Możliwość podłączenia do kontrolera domeny Microsoft lub uruchomienie kontrolera domeny na bazie SAMBA 4 "]
[]
[{"$nulls":3},"Niszczarka dysków HDD"]
[null,"1.34","Poziom bezpieczeństwa – kategoria E","E-2"]
[null,null,"Poziom bezpieczeństwa – kategoria H","H-3"]
[null,null,"Typ urządzenia","Profesjonalna niszczarka do nośników danych"]
[null,null,"Obsługiwane nośniki","Dyski twarde, pendrive’y, telefony, tablety"]
[null,null,"Waga netto","ok. 15 kg"]
[null,null,"Waga brutto","ok. 23 kg"]
[]
[{"$nulls":3},"Karta Micro SD"]
[null,"1.35","Pojemność","256 GB lub więcej"]
[null,null,"Prędkość odczytu do MB/s","150 lub więcej"]
[null,null,"Prędkość zapisu do MB/s","120 lub więcej"]
[null,null,"Typ karty","Micro SDXC "]
[]
[{"$nulls":3},"Urządzenie wielofunkcyjne atramentowe"]
[null,"1.36","Technologia druku","Atramentowa, kolorowa"]
[null,null,"Obsługiwany typ nośnika","Papier zwykły"]
[{"$nulls":3},"Papier fotograficzny"]
[null,null,"Obsługiwane formaty nośników","A4"]
[{"$nulls":3},"A5"]
[{"$nulls":3},"A6"]
[{"$nulls":3},"DL"]
[{"$nulls":3},"Formaty niestandardowe"]
[null,null,"Rodzaje podajników papieru","Kasetowy"]
[{"$nulls":3},"Tacka"]
[null,null,"Podajnik papieru","150 arkuszy"]
[null,null,"Liczba podajników papieru",2]
[null,null,"Szybkość druku w kolorze","do 17 str./min"]
[null,null,"Szybkość druku w mono","do 16 str./min"]
[null,null,"Maksymalna rozdzielczość druku","6000 x 1200 dpi"]
[null,null,"Liczba wkładów drukujących",4]
[null,null,"System stałego zasilania atramentem (CISS)","Tak"]
[null,null,"Druk dwustronny (dupleks)","Automatyczny"]
[null,null,"Maksymalna rozdzielczość skanowania","2400 x 1200 dpi"]
[null,null,"Szybkość kopiowania","do 13 str./min"]
[null,null,"Szybkość skanowania","do 3,35 s"]
[null,null,"Podajnik dokumentów skanera","Tak (ADF)"]
[null,null,"Skanowanie bezpośrednio do e-mail","Tak"]
[null,null,"Wyświetlacz","Wbudowany"]
[null,null,"Interfejsy","USB"]
[{"$nulls":3},"Wi-Fi"]
[{"$nulls":3},"AirPrint"]
[null,null,"Wersja z WiFi","Tak"]
[null,null,"Dodatkowe informacje","Drukowanie bezpośrednio ze smartfonów i tabletów"]
[null,null,"Dołączone akcesoria","Kabel zasilający"]
[{"$nulls":3},"Zestaw pełnych tuszów"]
[null,null,"Kolor","Czarny"]
[]
[{"$nulls":3},"Urządzenie wielofunkcyjne laserowe"]
[null,"1.37","Technologia druku","Laserowa, monochromatyczna"]
[null,null,"funkcje","drukarka, skaner, kopiowanie"]
[null,null,"Min. obsługiwany \ntyp nośnika","Koperty"]
[{"$nulls":3},"Papier zwykły"]
[null,null,"Obsługiwany format nośnika","Letter"]
[{"$nulls":3},"A6"]
[{"$nulls":3},"A5"]
[{"$nulls":3},"A4"]
[null,null,"Podajnik papieru","250 arkuszy"]
[null,null,"Podajnik dokumentów skanera","Tak (ADF)"]
[null,null,"Szybkość druku w mono","min.25 str./min"]
[null,null,"Maksymalny format skanu","A4"]
[null,null,"Druk dwustronny (dupleks)","Automatyczny"]
[null,null,"Interfejsy","USB"]
[{"$nulls":3},"Wi-Fi"]
[{"$nulls":3},"LAN (Ethernet)"]
[null,null,"Wyświetlacz","Wbudowany"]
[null,null,"Dodatkowe informacje","Kabel zasilający, przewód USB ,przewód  ETH, Toner (normalny)"]
[]
[{"$nulls":3},"Drukarka o wysokiej wydajności"]
[null,"1.38","Rodzaj","Kolorowa"]
[null,null,"Technologia","Laserowa"]
[null,null,"Format druku","A3, A4"]
[null,null,"Rozdzielczość druku w czerni"," 600 x 600 dpi"]
[null,null,"Prędkość druku - czerń"," 20 str/min"]
[null,null,"Prędkość druku - kolor"," 20 str/min"]
[null,null,"Rozdzielczość druku - kolor","600 x 600 dpi"]
[null,null,"Wydruk pierwszej strony"," czerń - 16 sec , kolor 17 sec"]
[null,null,"Obciążenie"," 75000 str/mies"]
[null,null,"Druk dwustronny","Tak automatyczny"]
[null,null,"Pojemność odbiornika"," 250 arkuszy"]
[null,null,"Pojemność podajnika","350 arkuszy"]
[null,null,"Wyświetlacz","Tak"]
[null,null,"Praca w sieci przewodowej","Tak"]
[null,null,"Wysokość [cm]","ok. 33.8"]
[null,null,"Szerokość [cm]","ok. 54.5"]
[null,null,"Głębokość [cm]","ok. 59.9"]
[null,null,"Kolor","Biała"]
[]
[{"$nulls":3},"Urządzenie wielofunkcyjne - kolorowe, laserowe"]
[null,"1.39","Druk w kolorze:","Tak "]
[null,null,"Szybkość druku [str/min]:","31 w czerni , 31 w kolorze "]
[null,null,"Maksymalny format druku:","A4 "]
[null,null,"Automatyczny druk dwustronny:","Tak "]
[null,null,"Wbudowany faks:","Tak "]
[null,null,"Typ skanera:","CIS, skanowanie dwustronne"]
[null,null,"Rozdzielczość optyczna skanera [dpi]:","1200 x 2400 "]
[null,null,"Wi-Fi:","Tak "]
[null,null,"Kolor obudowy","Biały"]
[null,null,"Wysokość [mm]","ok. 538"]
[null,null,"Szerokość [mm]","ok. 435"]
[null,null,"Głębokość [mm]","ok.  536"]
[null,null,"Waga [kg]","ok, 27.9 "]
[null,null,"Poziom hałasu [dB]","ok. 49 DB"]
[null,null,"Dokument należy podpisać kwalifikowanym podpisem elektronicznym zgodnie z zapisami IDW."]
[null,"Przypis 1. Wymagania które musi spełniać system operacyjny ver.1 "]
[null,1,"Dostępne dwa rodzaje graficznego interfejsu użytkownika:"]
[null,null,"a. Klasyczny, umożliwiający obsługę przy pomocy klawiatury i myszy,"]
[null,null,"b. Dotykowy umożliwiający sterowanie dotykiem na urządzeniach typu tablet lub monitorach dotykowych"]
[null,2,"Interfejs użytkownika dostępny w wielu językach do wyboru – w tym polskim i angielskim"]
[null,3,"Możliwość tworzenia pulpitów wirtualnych, przenoszenia aplikacji pomiędzy pulpitami i przełączanie się pomiędzy pulpitami za pomocą skrótów klawiaturowych lub GUI."]
[null,4,"Wbudowane w system operacyjny minimum dwie przeglądarki Internetowe"]
[null,5,"Zintegrowany z systemem moduł wyszukiwania informacji (plików różnego typu, tekstów, metadanych) dostępny z kilku poziomów: poziom menu, poziom otwartego okna systemu operacyjnego; "]
[null,6,"Zlokalizowane w języku polskim, co najmniej następujące elementy: menu, pomoc, komunikaty systemowe, menedżer plików."]
[null,7,"Graficzne środowisko instalacji i konfiguracji dostępne w języku polskim"]
[null,8,"Wbudowany system pomocy w języku polskim."]
[null,9,"Możliwość przystosowania stanowiska dla osób niepełnosprawnych (np. słabo widzących)."]
[null,10,"Możliwość dokonywania aktualizacji i poprawek systemu poprzez mechanizm zarządzany przez administratora systemu Zamawiającego."]
[null,11,"Możliwość dostarczania poprawek do systemu operacyjnego w modelu peer-to-peer."]
[null,12,"Zabezpieczony hasłem hierarchiczny dostęp do systemu, konta i profile użytkowników zarządzane zdalnie; praca systemu w trybie ochrony kont użytkowników."]
[null,13,"Możliwość dołączenia systemu do usługi katalogowej on-premise lub w chmurze."]
[null,14,"Umożliwienie zablokowania urządzenia w ramach danego konta tylko do uruchamiania wybranej aplikacji - tryb \"kiosk\"."]
[null,15,"Zdalna pomoc i współdzielenie aplikacji – możliwość zdalnego przejęcia sesji zalogowanego użytkownika celem rozwiązania problemu z komputerem."]
[null,16,"Transakcyjny system plików pozwalający na stosowanie przydziałów (ang. quota) na dysku dla użytkowników oraz zapewniający większą niezawodność i pozwalający tworzyć kopie zapasowe."]
[null,17,"Oprogramowanie dla tworzenia kopii zapasowych (Backup); automatyczne wykonywanie kopii plików z możliwością automatycznego przywrócenia wersji wcześniejszej."]
[null,18,"Możliwość przywracania obrazu plików systemowych do uprzednio zapisanej postaci."]
[null,19,"Możliwość przywracania systemu operacyjnego do stanu początkowego z pozostawieniem plików użytkownika."]
[null,20,"Możliwość blokowania lub dopuszczania dowolnych urządzeń peryferyjnych za pomocą polityk grupowych (np. przy użyciu numerów identyfikacyjnych sprzętu).\""]
[null,21,"Wbudowany mechanizm wirtualizacji typu hypervisor.\""]
[null,22,"Wbudowana możliwość zdalnego dostępu do systemu i pracy zdalnej z wykorzystaniem pełnego interfejsu graficznego."]
[null,23,"Dostępność bezpłatnych biuletynów bezpieczeństwa związanych z działaniem systemu operacyjnego."]
[null,24,"Wbudowana zapora internetowa (firewall) dla ochrony połączeń internetowych, zintegrowana z systemem konsola do zarządzania ustawieniami zapory i regułami IP v4 i v6."]
[null,25,"Identyfikacja sieci komputerowych, do których jest podłączony system operacyjny, zapamiętywanie ustawień i przypisywanie do min. 3 kategorii bezpieczeństwa \n(z predefiniowanymi odpowiednio do kategorii ustawieniami zapory sieciowej, udostępniania plików itp.)."]
[null,26,"Możliwość zdefiniowania zarządzanych aplikacji w taki sposób aby automatycznie szyfrowały pliki na poziomie systemu plików. Blokowanie bezpośredniego kopiowania treści między aplikacjami zarządzanymi a niezarządzanymi."]
[null,27,"Wbudowany system uwierzytelnienia dwuskładnikowego oparty o certyfikat lub klucz prywatny oraz PIN lub uwierzytelnienie biometryczne."]
[null,28,"Wbudowane mechanizmy ochrony antywirusowej i przeciw złośliwemu oprogramowaniu z zapewnionymi bezpłatnymi aktualizacjami."]
[null,29,"Wbudowany system szyfrowania dysku twardego ze wsparciem modułu TPM"]
[null,30,"Możliwość tworzenia i przechowywania kopii zapasowych kluczy odzyskiwania do szyfrowania dysku w usługach katalogowych."]
[null,31,"Możliwość tworzenia wirtualnych kart inteligentnych."]
[null,32,"Wsparcie dla firmware UEFI i funkcji bezpiecznego rozruchu (Secure Boot)"]
[null,33,"Wbudowany w system, wykorzystywany automatycznie przez wbudowane przeglądarki filtr reputacyjny URL."]
[null,34,"Wsparcie dla IPSEC oparte na politykach – wdrażanie IPSEC oparte na zestawach reguł definiujących ustawienia zarządzanych w sposób centralny."]
[null,35,"Mechanizmy logowania w oparciu o:"]
[null,null,"a. Login i hasło,"]
[null,null,"b. Karty inteligentne i certyfikaty (smartcard),"]
[null,null,"c. Wirtualne karty inteligentne i certyfikaty (logowanie w oparciu o certyfikat chroniony poprzez moduł TPM),"]
[null,null,"d. Certyfikat/Klucz i PIN"]
[null,null,"e. Certyfikat/Klucz i uwierzytelnienie biometryczne"]
[null,36,"Wsparcie dla uwierzytelniania na bazie Kerberos v. 5"]
[null,37,"Wbudowany agent do zbierania danych na temat zagrożeń na stacji roboczej."]
[null,38,"Wsparcie .NET Framework 2.x, 3.x i 4.x – możliwość uruchomienia aplikacji działających we wskazanych środowiskach"]
[null,39,"Wsparcie dla VBScript – możliwość uruchamiania interpretera poleceń"]
[null,40,"Wsparcie dla PowerShell 5.x – możliwość uruchamiania interpretera poleceń"]
[]
[null,"Przypis 2. Wymagania dotyczące \"Pakietu oprogramowania biurowego\"  "]
[null,null,"Rozszerzenie posiadanej i wykorzystywanej przez zamawiającego licencji na pakiet oprogramowania biurowego  \"MS Office Professional Plus 2019 EDU dla szkół i Uczelni\". Licencja wieczysta (dożywotnia).  Tenant do office:  officeapsl.onmicrosoft.com"]
[null,null,"Zamawiający uzna pakiet oprogramowania biurowego za równoważny określonemu w SWZ, gdy spełni poniższe wymagania:"]
[null,null,"Oprogramowanie biurowe w najnowszej dostępnej na rynku wersji. Zamawiający nie dopuszcza zaoferowania pakietów biurowych, programów i planów licencyjnych opartych o rozwiązania chmury oraz rozwiązań wymagających stałych opłat w okresie używania zakupionego produktu."]
[null,null,"Dla oprogramowania musi być publicznie znany cykl życia przedstawiony przez producenta systemu i dotyczący rozwoju wsparcia technicznego – w szczególności w zakresie bezpieczeństwa. Wymagane jest prawo do instalacji aktualizacji i poprawek do danej wersji oprogramowania, udostępnianych bezpłatnie przez producenta na jego stronie internetowej w okresie co najmniej 5 lat."]
[null,null,"Zamawiający wymaga, aby wszystkie elementy oprogramowania biurowego oraz jego licencja pochodziły od tego samego producenta.  Zawierające w pakiecie przynajmniej edytor tekstu, arkusz kalkulacyjny, program do tworzenia prezentacji. Aplikacja do tworzenia prezentacji powinna umożliwiać udostępnianie prezentacji przy użyciu przeglądarki internetowej bez potrzeby instalowania dodatkowych elementów ani konfigurowania. Do każdej prezentacji można dodać wciągające wideo, aby zwrócić uwagę odbiorców. Nagrania wideo można wstawiać bezpośrednio w programie, a następnie dostosowywać je, przycinać lub oznaczać najważniejsze sceny w nagraniu zakładkami, aby zwrócić na nie szczególną uwagę. Wstawiane nagrania są domyślnie osadzone, dzięki czemu nie trzeba zarządza dodatkowymi plikami wideo. Pliki programów edytora tekstów, arkusza kalkulacyjnego i programu do tworzenia prezentacji można przechowywać online i uzyskiwać do nich dostęp, przeglądać, edytować i udostępniać innym użytkownikom."]
[null,null,"Pakiet biurowy musi spełniać następujące wymagania:"]
[null,1,"Wymagania odnośnie interfejsu użytkownika:"]
[null,null,"a. Pełna polska wersja językowa interfejsu użytkownika"]
[null,null,"b. Prostota i intuicyjność obsługi, pozwalająca na pracę osobom nieposiadającym umiejętności technicznych"]
[null,null,"c. Możliwość zintegrowania uwierzytelniania użytkowników z usługą katalogową (Active Directory lub funkcjonalnie równoważną) – użytkownik raz zalogowany z poziomu   systemu operacyjnego stacji roboczej  ma być automatycznie rozpoznawany we wszystkich modułach oferowanego rozwiązania bez potrzeby oddzielnego monitowania  go o ponowne uwierzytelnienie się."]
[null,2,"Oprogramowanie musi umożliwiać tworzenie i edycję dokumentów elektronicznych w ustalonym formacie, który spełnia następujące warunki:"]
[null,null,"a. posiada kompletny i publicznie dostępny opis formatu,"]
[null,null,"c. umożliwia wykorzystanie schematów XML"]
[null,3,"Oprogramowanie musi umożliwiać dostosowanie dokumentów i szablonów do potrzeb instytucji oraz udostępniać narzędzia umożliwiające dystrybucję odpowiednich szablonów do właściwych odbiorców."]
[null,4,"W skład oprogramowania muszą wchodzić narzędzia programistyczne umożliwiające automatyzację pracy i wymianę danych pomiędzy dokumentami i aplikacjami (język makropoleceń, język skryptowy)"]
[null,5,"Do aplikacji musi być dostępna pełna dokumentacja w języku polskim."]
[null,6,"Pakiet zintegrowanych aplikacji biurowych musi zawierać:"]
[null,null,"a. Edytor tekstów"]
[null,null,"b. Arkusz kalkulacyjny"]
[null,null,"c. Narzędzie do przygotowywania i prowadzenia prezentacji"]
[null,null,"d. Narzędzie do tworzenia drukowanych materiałów informacyjnych"]
[null,null,"e. Narzędzie do zarządzania informacją prywatą (pocztą elektroniczną, kalendarzem, kontaktami i zadaniami),"]
[null,7,"Edytor tekstów musi umożliwiać:"]
[null,null,"a.  Edycję i formatowanie tekstu w języku polskim wraz z obsługą języka polskiego w zakresie sprawdzania pisowni i poprawności gramatycznej oraz funkcjonalnością słownika wyrazów \n     bliskoznacznych i autokorekty"]
[null,null,"b.  Wstawianie oraz formatowanie tabel"]
[null,null,"c.  Wstawianie oraz formatowanie obiektów graficznych"]
[null,null,"d.  Wstawianie wykresów i tabel z arkusza kalkulacyjnego (wliczając tabele przestawne)"]
[null,null,"e.  Automatyczne numerowanie rozdziałów, punktów, akapitów, tabel i rysunków"]
[null,null,"f.   Automatyczne tworzenie spisów treści"]
[null,null,"g.  Formatowanie nagłówków i stopek stron "]
[null,null,"h.  Sprawdzanie pisowni w języku polskim"]
[null,null,"i.   Śledzenie zmian wprowadzonych przez użytkowników"]
[null,null,"j.   Nagrywanie, tworzenie i edycję makr automatyzujących wykonywanie czynności"]
[null,null,"k.  Określenie układu strony (pionowa/pozioma)"]
[null,null,"l.   Wydruk dokumentów"]
[null,null,"m. Wykonywanie korespondencji seryjnej bazując na danych adresowych pochodzących z arkusza kalkulacyjnego i z narzędzia do zarządzania informacją prywatną"]
[null,null,"n.  Pracę na dokumentach utworzonych przy pomocy Microsoft Word 2003 lub Microsoft Word 2007 i 2010 z zapewnieniem bezproblemowej konwersji wszystkich elementów  i atrybutów dokumentu"]
[null,null,"o.  Zabezpieczenie dokumentów hasłem przed odczytem oraz przed wprowadzaniem modyfikacji"]
[null,null,"p.  Wymagana jest dostępność do oferowanego edytora tekstu bezpłatnych narzędzi (kontrolki) umożliwiających podpisanie podpisem elektronicznym pliku z zapisanym \n     dokumentem przy pomocy  certyfikatu kwalifikowanego zgodnie  z wymaganiami obowiązującego w Polsce prawa."]
[null,8,"Arkusz kalkulacyjny musi umożliwiać:"]
[null,null,"a.  Tworzenie raportów tabelarycznych"]
[null,null,"b.  Tworzenie wykresów liniowych (wraz linią trendu), słupkowych, kołowych"]
[null,null,"c.  Tworzenie arkuszy kalkulacyjnych zawierających teksty, dane liczbowe oraz formuły przeprowadzające operacje matematyczne, logiczne, tekstowe, statystyczne oraz \n     operacje na danych finansowych  i na miarach czasu."]
[null,null,"d.  Tworzenie raportów z zewnętrznych źródeł danych (inne arkusze kalkulacyjne, bazy danych zgodne z ODBC, pliki tekstowe, pliki XML, webservice)"]
[null,null,"e.  Obsługę kostek OLAP oraz tworzenie i edycję kwerend bazodanowych i webowych. Narzędzia wspomagające analizę statystyczną i finansową, analizę wariantową  i rozwiązywanie problemów optymalizacyjnych"]
[null,null,"f.   Tworzenie raportów tabeli przestawnych umożliwiających dynamiczną zmianę wymiarów oraz wykresów bazujących na danych z tabeli przestawnych"]
[null,null,"g.  Wyszukiwanie i zamianę danych"]
[null,null,"h.  Wykonywanie analiz danych przy użyciu formatowania warunkowego"]
[null,null,"i.   Nazywanie komórek arkusza i odwoływanie się w formułach po takiej nazwie"]
[null,null,"j.   Nagrywanie, tworzenie i edycję makr automatyzujących wykonywanie czynności"]
[null,null,"k.  Formatowanie czasu, daty i wartości finansowych z polskim formatem"]
[null,null,"l.   Zapis wielu arkuszy kalkulacyjnych w jednym pliku."]
[null,null,"m. Zachowanie pełnej zgodności z formatami plików utworzonych za pomocą oprogramowania Microsoft Excel 2003 oraz Microsoft Excel 2007 i 2010, z uwzględnieniem \n     poprawnej realizacji użytych w nich  funkcji specjalnych i makropoleceń.."]
[null,null,"n.  Zabezpieczenie dokumentów hasłem przed odczytem oraz przed wprowadzaniem modyfikacji"]
[null,9,"Narzędzie do przygotowywania i prowadzenia prezentacji musi umożliwiać:"]
[null,null,"a.  Przygotowywanie prezentacji multimedialnych, które będą:"]
[null,null,"b.  Prezentowanie przy użyciu projektora multimedialnego"]
[null,null,"c.  Drukowanie w formacie umożliwiającym robienie notatek"]
[null,null,"d.  Zapisanie jako prezentacja tylko do odczytu."]
[null,null,"e.  Nagrywanie narracji i dołączanie jej do prezentacji"]
[null,null,"f.   Opatrywanie slajdów notatkami dla prezentera"]
[null,null,"g.  Umieszczanie i formatowanie tekstów, obiektów graficznych, tabel, nagrań dźwiękowych i wideo "]
[null,null,"h.  Umieszczanie tabel i wykresów pochodzących z arkusza kalkulacyjnego"]
[null,null,"i.   Odświeżenie wykresu znajdującego się w prezentacji po zmianie danych w źródłowym arkuszu kalkulacyjnym"]
[null,null,"j.   Możliwość tworzenia animacji obiektów i całych slajdów"]
[null,null,"k.  Prowadzenie prezentacji w trybie prezentera, gdzie slajdy są widoczne na jednym monitorze lub projektorze, a na drugim widoczne są slajdy i notatki prezentera"]
[null,null,"l.   Pełna zgodność z formatami plików utworzonych za pomocą oprogramowania MS PowerPoint 2003, MS PowerPoint 2007 i 2010."]
[null,10,"Narzędzie do tworzenia drukowanych materiałów informacyjnych musi umożliwiać:"]
[null,null,"a.  Tworzenie i edycję drukowanych materiałów informacyjnych"]
[null,null,"b.  Tworzenie materiałów przy użyciu dostępnych z narzędziem szablonów: broszur, biuletynów, katalogów."]
[null,null,"c.  Edycję poszczególnych stron materiałów."]
[null,null,"d.  Podział treści na kolumny."]
[null,null,"e.  Umieszczanie elementów graficznych."]
[null,null,"f.   Wykorzystanie mechanizmu korespondencji seryjnej"]
[null,null,"g.  Płynne przesuwanie elementów po całej stronie publikacji."]
[null,null,"h.  Eksport publikacji do formatu PDF oraz TIFF."]
[null,null,"i.   Wydruk publikacji."]
[null,null,"j.   Możliwość przygotowywania materiałów do wydruku w standardzie CMYK."]
[null,11,"Narzędzie do zarządzania informacją prywatną (pocztą elektroniczną, kalendarzem, kontaktami i zadaniami) musi umożliwiać:"]
[null,null,"a.  Pobieranie i wysyłanie poczty elektronicznej z serwera pocztowego"]
[null,null,"b.  Filtrowanie niechcianej poczty elektronicznej (SPAM) oraz określanie listy zablokowanych i bezpiecznych nadawców"]
[null,null,"c.  Tworzenie katalogów, pozwalających katalogować pocztę elektroniczną"]
[null,null,"d.  Automatyczne grupowanie poczty o tym samym tytule"]
[null,null,"e.  Tworzenie reguł przenoszących automatycznie nową pocztę elektroniczną do określonych katalogów bazując na słowach zawartych w tytule, adresie nadawcy i odbiorcy"]
[null,null,"f.   Oflagowanie poczty elektronicznej z określeniem terminu przypomnienia"]
[null,null,"g.  Zarządzanie kalendarzem"]
[null,null,"h.  Udostępnianie kalendarza innym użytkownikom"]
[null,null,"i.   Przeglądanie kalendarza innych użytkowników"]
[null,null,"j.   Zapraszanie uczestników na spotkanie, co po ich akceptacji powoduje automatyczne wprowadzenie spotkania w ich kalendarzach"]
[null,null,"k.  Zarządzanie listą zadań"]
[null,null,"l.   Zlecanie zadań innym użytkownikom"]
[null,null,"m. Zarządzanie listą kontaktów"]
[null,null,"n.  Udostępnianie listy kontaktów innym użytkownikom"]
[null,null,"o.  Przeglądanie listy kontaktów innych użytkowników"]
[null,null,"p.  Możliwość przesyłania kontaktów innym użytkowników"]
[]
[null,null,"UWAGA."]
[null,null,"Obowiązek wykazania równoważności zaoferowanego pakietu oprogramowania biurowego leży  po stronie Wykonawcy. \nW tym celu Wykonawca winien przedstawić oświadczenie i dokumenty potwierdzające równoważność pakietu oprogramowania biurowego"]

{"sheet":"Cz. II OPZ Multimedia","index":2,"n_rows":352,"n_cols":6,"rows_kept":352,"merged":[[2,1,2,5],[40,2,41,2],[43,2,44,2],[45,2,49,2],[62,2,63,2],[73,2,75,2],[119,2,124,2],[153,2,153,3],[167,2,167,3],[238,2,238,3],[254,2,254,3],[275,2,279,2],[280,2,280,3],[281,2,287,2],[351,2,351,3]]}
[null,"CZĘŚĆ II  Opis przedmiotu zamówienia dla części 2"]
[]
[null,"Jeżeli w opisie przedmiotu zamówienia wskazano jakikolwiek znak towarowy, patent czy pochodzenie, należy przyjąć, że wskazane patenty, znaki towarowe, pochodzenie określają parametry techniczne, eksploatacyjne, użytkowe, co oznacza, że Zamawiający dopuszcza złożenie oferty w tej części przedmiotu zamówienia o równoważnych parametrach technicznych, eksploatacyjnych i użytkowych. W celu umożliwienia Zamawiającemu odpowiedniej weryfikacji zaoferowanego sprzętu lub oprogramowania pod kątem minimalnych wymagań należy podać dokładną nazwę producenta, model, procesor, nr katalogowy itp. Nie dopuszcza się wpisania wyrażeń typu: spełnia, spełniający minimalne wymagania itd.  Wszystkie opisane parametry wymagane są wymaganiami minimalnymi. Zamawiający akceptuje rozwiązania o parametrach równoważnych lub lepszych, bez utraty funkcjonalności i wydajności."]
[]
[null,"Poz.",null,"Opis Zamawiającego","Opis Wykonawcy \n(producent i model, procesor i inne parametry )","Zdjęcie poglądowe"]
[{"$nulls":3},"Głośnik bluetooth ver.1"]
[null,"2.01","Rodzaj zestawu","2.0"]
[null,null,"Łącznosc bezprzewodowa","Bkuetooth"]
[null,null,"wej / wyj","wejście liniowe audio, wejście zasilania DC"]
[null,null,"Moc","7W"]
[null,null,"Odporność na zachlapanie","Tak"]
[null,null,"Kolor","Czarny"]
[]
[{"$nulls":3},"Głosnik Bluetooth ver.2"]
[null,"2.02","Moc","ok. 100W"]
[null,null,"Czas pracy na akumulatorze","Min. 24h"]
[null,null,"Norma IP67","Tak, odporny na kurz i wodę"]
[null,null,"Łączność bezprzewodowa","Bluetooth"]
[null,null,"Wyposażenie","Pasek do przenoszenia, Zasilacz "]
[null,null,"Kolor","Niebieski"]
[]
[{"$nulls":3},"Kamera internetowa USB z mikrofonem "]
[null,"2.03","Przeznaczenie","Do zajęć zdalnych i telekonferencji"]
[null,null,"Funkcja aparatu cyfrowego","tak"]
[null,null,"Funkcja kamery internetowej","tak"]
[null,null,"Maks. rozdzielczość","min. 1920 x 1080 (FullHD | 30 FPS)"]
[null,null,"Interfejs","USB"]
[null,null,"Długość kabla","min. 1.5 m"]
[null,null,"Mikrofon","tak"]
[null,null,"Zasilanie","z urządzenia"]
[null,null,"Kolor","czarny"]
[]
[{"$nulls":3},"Projektor ver. 1"]
[null,"2.04","Technologia wyświetlania","3LCD lub DLP"]
[null,null,"Rozdzielczość natywna","1920 x 1080 (FHD)"]
[null,null,"Rozdzielczość maksymalna","1920 x 1080 (FHD)"]
[null,null,"Jasność","min. 3400 lm"]
[null,null,"Kontrast","min. 16 000:1"]
[null,null,"Wielkość rzutowanego obrazu","30\" - 300\" (+/- 10%)"]
[null,null,"Moc lampy","min.  210 W"]
[null,null,"Złącza","HDMI - 2 szt."]
[{"$nulls":3},"USB "]
[null,null,"Głośniki","Tak"]
[null,null,"Dodatkowe informacje","Możliwość regulacja zniekształcenia trapezowego‎ (Keystone)"]
[{"$nulls":3},"Możliwość zabezpieczenia linką (Kensington Lock)"]
[null,null,"Dołączone akcesoria","Torba na projektor i akcesoria"]
[{"$nulls":3},"Pilot z bateriami"]
[{"$nulls":3},"Kabel zasilający"]
[{"$nulls":3},"Uchwyt sufitowy"]
[{"$nulls":3},"Przewód HDMI"]
[]
[{"$nulls":3},"Ekran ścienny "]
[null,"2.06","Format","4:3"]
[null,null,"szerokość powierzchni projekcyjnej","230-260"]
[null,null,"wysokość powierzchni projekcyjnej","160-190"]
[null,null,"Ramka"," czarna lewo/prawo/dół"]
[null,null,"Przekątna","ok. 120\""]
[null,null,"Przeznaczenie"," Do montażu na ścianach i sufitach "]
[null,null,"informacje dodatkowe","Montaż ekranu u zamawiającego w cenie"]
[]
[{"$nulls":3},"Słuchawki bezprzewodowe nauszne z mikrofonem"]
[null,"2.07","Łączność","Bezprzewodowe"]
[null,null,"Budowa słuchawek","Nauszne"]
[{"$nulls":3},"Zamknięte"]
[null,null,"System audio","Stereo 2.0"]
[null,null,"Średnica membrany","50 mm"]
[null,null,"Pasmo przenoszenia słuchawek","20 ~ 20000 Hz"]
[null,null,"Impedancja słuchawek","32 Om"]
[null,null,"Regulacja głośności","Tak"]
[null,null,"Wbudowany mikrofon","Przy słuchawce"]
[null,null,"Pasmo przenoszenia mikrofonu","30 ~ 16000 Hz"]
[null,null,"Połączenie ","Radiowo ,Bluetooth 5.3"]
[null,null,"Materiał nauszników","Skóra ekologiczna"]
[null,null,"Dodatkowe informacje","Regulowany pałąk"]
[{"$nulls":3},"Miękko wyściełany pałąk"]
[{"$nulls":3},"Elastyczne ramię mikrofonu"]
[]
[{"$nulls":3},"Monitor interaktywny z montażem nasciennym ver.1"]
[null,"2.08","Rodzaj:","Monitor interaktywny (dotykowy)"]
[null,null,"Rodzaj panelu:","LED, DLED"]
[null,null,"przekątna:","min. 75 cali"]
[null,null,"Strumieniowanie obrazu do urządzeń mobilnych:","Tak"]
[null,null,"Rozdzielczość:","min 4K (3840 x 2160 px)"]
[null,null,"Format:","16x9"]
[null,null,"Jasność:","min. 400 cd/m2"]
[null,null,"Kąt widzenia:","min. 178"]
[null,null,"Ilość pkt dotyku:","min. 40 pkt"]
[null,null,"Dokładność:","min. 1,5 mm"]
[null,null,"Głośniki:","min. 2 x 16W"]
[null,null,"Pozycja głośników:","Przód"]
[null,null,"Powierzchnia Antyodblaskowa:","TAK"]
[null,null,"WiFi:","TAK 2.4 Ghz / 5 Ghz"]
[null,null,"Tryb tablicy interaktywnej:","TAK"]
[null,null,"Formaty multimedialne:","min. JPEG. BMP. PNG Video | MPEG1. MPEG2. MPEG4. H.264. H.265. RM. RMVB. MOV. MJPEG. VC1. DivX. FLV (Support 1080P. 4K HD Decoding) Audio| MP3. M4A. (AAC)"]
[null,null,"Wsparcie dla drukarek WIFI:","TAK"]
[null,null,"Wejścia HDMI:","min. 3 szt."]
[null,null,"Wyjścia HDMI:","min. 1 szt. "]
[null,null,"Wejścia jack 3.5mm:","Tak"]
[null,null,"LAN:","Tak"]
[null,null,"Rysik w zestawie","Min 4 szt"]
[null,null,"Redukcja Światła Niebieskiego","TAK"]
[null,null,"W zestawie:","Kabel USB min. 5M, Pilot, Kabel HDMI (min. 5m),  Piórko, \nUchwyt ścienny kompatybilny z oferowanym monitorem"]
[null,null,"Uwaga","Wymagany jest montaż przez sprzedającego u zamawiającego"]
[]
[{"$nulls":3},"Telewizor duży z montażem naściennym"]
[null,"2.09","Typ urządzenia","Telewizor 4K"]
[null,null,"Rozmiar ekranu","85 cali"]
[null,null,"Technologia panelu","LED lub QLED"]
[null,null,"Rozdzielczość ekranu","3840×2160 pikseli"]
[null,null,"Smart TV:","Tak"]
[null,null,"Obsługa HDR","HDR10, HLG"]
[null,null,"Moc dźwięku","ok. 20 W"]
[null,null,"Złącza:","HDMI x3, USB x1"]
[null,null,"Liczba głośników",2]
[null,null,"Funkcje:","Wi-Fi, Bluetooth"]
[null,null,"Kolor obudowy:","Czarny"]
[null,null,"Uchwyt VESA","400×400 mm (dla wersji montowanej na ścianie)"]
[null,null,"Pobór mocy","ok. 129 W"]
[null,null,"Wymiary (SxWxG)","1673x1048x341 mm (z podstawą), 1673x958x60 mm (bez podstawy)"]
[null,null,"Dołączone akcesoria","Pilot"]
[{"$nulls":3},"Baterie do pilota"]
[{"$nulls":3},"Podstawa telewizora"]
[{"$nulls":3},"2 x przewód HDMI min 6 m"]
[{"$nulls":3},"Kabel zasilający"]
[{"$nulls":3},"Uchwyt ścienny kompatybilny z oferownym telewizorem regulowany w pionie i poziomie"]
[null,null,"Uwaga","Wymagany jest montaż sprzętu przez Sprzedającego u Zamawiającego"]
[]
[{"$nulls":3},"Google VR"]
[null,"2.10","Typ urządzenia","Google VR"]
[null,null,"Zastosowanie","PC"]
[null,null,"Rozdzielczość ekranu","4128 x 2208 (2064 x 2208 na każde oko)"]
[null,null,"Częstotliwość odświeżania","120 Hz"]
[null,null,"Pole widzenia [stopnie]",110]
[null,null,"Pamięć wbudowana [GB]",512]
[null,null,"Dźwięk","Wbudowane głośniki, Wbudowany mikrofon"]
[null,null,"Czujniki","Akcelerometr, Czujnik podczerwieni, Czujnik zbliżeniowy, Żyroskop "]
[null,null,"Złącza","USB-C 3.0 - 1 szt. "]
[]
[{"$nulls":3},"Mikrofon Wielokierunkowy - Studyjny"]
[null,"2.11","Rodzaj łączności","Przewodowy"]
[null,null,"Rodzaj przetwornika","Pojemnościowy"]
[null,null,"Kierunkowość","Wielokierunkowy"]
[null,null,"Zastosowanie ","Komputer"]
[null,null,"Przełącznik wyciszenia","Tak"]
[null,null,"Czułość [DB]",-37]
[null,null,"Poziom ciś. Akustycz","110 [Hz]"]
[null,null,"Pasmo przenoszenia MAX","16000 [Hz]"]
[null,null,"Pasmo przenoszenia MIN","50 [Hz]"]
[null,null,"Próbkowanie","192 kHz / 24bit"]
[null,null,"Mocowanie","Statyw biurkowy"]
[null,null,"Kolor ","Czarny"]
[]
[{"$nulls":3},"Tablica interaktywna z projektorem"]
[null,"2.12","Tablica"]
[null,null,"Technologia","Pozycjonowanie w podczerwieni"]
[null,null,"Przekątna","93\""]
[null,null,"Rodzaj powierzchni","Magnetyczna, porcelanowa, suchoscieralna, uszkodzenia nie wpływają na działanie"]
[null,null,"Sposób obsługi","Palec lub wskaźnik"]
[null,null,"Format obrazu","16:10:00"]
[null,null,"Rozdzielczość","32768x32768"]
[null,null,"Dokładność odczytu","<0,05mm"]
[null,null,"Prędkośc kursora","120\"/sekundę"]
[null,null,"Czas reakcji","8ms, pierwsza kropka 16ms"]
[null,null,"Komunikacja","USB"]
[null,null,"Paski skrótów","Po obu stronach tablicy"]
[null,null,"Akcesoria","inteligentna półka na pisaki, 3 pisaki, kabel usb 6m, wskaźnik teleskopowy, wymazywacz w formie pisaka"]
[null,null,"Dodatkowe akcesoria","Uchwyt do montażu na ścianie"]
[null,null,"Projektor"]
[null,null,"Jasność źródła","min. 3500 lm"]
[null,null,"Technologia","DLP"]
[null,null,"Typ projektora","Ultrakrótkoogniskowy"]
[null,null,"Rozdzielczość","1280 x 800 (WXGA)"]
[null,null,"Żywotność źródła światła","min. 6000h normalny / 12000 ECO"]
[null,null,"Kontrast","min. 10000:1"]
[null,null,"Współczynnik odległości","0.35:1"]
[null,null,"Przekątna","min. 80\" - 100\""]
[null,null,"Wejscia wideo","Composite"]
[{"$nulls":3},"2 x HDMI"]
[{"$nulls":3},"1 x VGA"]
[null,null,"Wyjście wideo","VGA (D-Sub15)"]
[null,null,"Audio","Jack 3,5"]
[]
[{"$nulls":3},"Kamera sportowa \"LIVE\""]
[null,"2.13","Rozdzielczość nagrywania","3840 x 2160 "]
[null,null,"Liczba klatek na sekundę","2.7K - 60 kl/s, 4K - 60 kl/s, FullHD - 60 kl/s "]
[null,null,"Kąt widzenia [stopnie]:","Bezprzewodowa "]
[null,null,"Czas nagrywania","2.4 GHz, Bluetooth "]
[null,null,"Klawisze multimedialne","2.5h na akumulatorze"]
[null,null,"Dotykowy ekran LCD","Tak"]
[null,null,"Wielkość ekranu LCD [cal]",2]
[null,null,"Zasilanie","Akumulatorowe "]
[null,null,"MAX karty pamięci [GB]",512]
[null,null,"Bluetooth","Tak"]
[null,null,"Wi-Fi","Tak"]
[null,null,"Złącze USB","Tak"]
[null,null,"Przetwornik","CMOS "]
[null,null,"Transmisja na żywo","Tak"]
[null,null,"W zestawie","Kamera\nKabel PD (USB-C do USB-C)\nOsłona ochronna\nPasek na nadgarstek\nUchwyt z gwintem 1/4\"\nNakładka szerokokątna na obiektyw\nTransmiter \nOsłona przeciwwietrzna na mikrofon\nMagnetyczny klips do mikrofonu\nUchwyt z akumulatorem\nMini Tripod\nTorba transportowa"]
[null,null,"Rodzaj stabilizacji obrazu","3-osiowa "]
[]
[{"$nulls":3},"Zestaw 3 Lamp LED ze statywami i walizką"]
[null,"2.14","Kontrola jasności","    Wi-Fi, Opornik, Przesłona, 2.4G"]
[null,null,"Temperatura barwowa","   3200-5600 CRI95"]
[null,null,"Iluminacja (LM)",2268]
[null,null,"Oświetlenie (LUX) ","3245 @ 1 meter"]
[null,null,"Dotykowy ekran LCD","3245 @ 1 meter"]
[null,null,"Moc (W)",36]
[null,null,"Zasilanie","Akumulatorowe  lub sieciowe"]
[null,null,"Źródło prądu","12-16.8V DC, 100-240V AC"]
[null,null,"Łączność","WiFi, RF - (2.4 GHz)"]
[null,null,"Widmo światła","Bi-Color"]
[null,null,"DMX","Nie"]
[null,null,"Wbudowany akumulator","Nie"]
[null,null,"Transmisja na żywo","Tak"]
[]
[{"$nulls":3},"Aparat bezlusterkowy cyfrowy"]
[null,"2.15","Rodzaj matrycy:","   CMOS "]
[null,null,"Zakres czułości ISO:","   100 - 51200 "]
[null,null,"Rozdzielczość efektywna","   ok. 24.3 "]
[null,null,"Rodzaj stabilizacji obrazu:","   5-osiowy "]
[null,null,"Rodzaj ekranu:","   Dotykowy ekran LCD, Ruchomy ekran LCD "]
[null,null,"Wielkość ekranu LCD [cal]:","   ok. 3.2"]
[null,null,"Zdjęcia seryjne","Do 4.5 kl./s "]
[null,null,"Złącze HDMI","HDMI Typ-C "]
[null,null,"Złącze USB","USB Typ-C "]
[null,null,"Łączność bezprzewodowa","Bluetooth, Wi-Fi "]
[null,null,"Wbudowana lampa błyskowa","Tak"]
[null,null,"Maks rozdzielczość filmów","ok. 3840 x 2160 "]
[null,null,"Obsługiwane karty pamięci","SD, SDHC, SDXC "]
[null,null,"Maks rozdzielczość zdjęcia","ok. 6016 x 4016 "]
[null,null,"Standard nagrywania filmów","4K"]
[null,null,"Kolor obudowy","Czarny"]
[null,null,"Obiektyw","Stałoogniskowy standardowy"]
[null,null,"Ogniskowa","ok. 50mm"]
[null,null,"Maks/Min otów przesłony","ok. f/1.4  -  f/16"]
[null,null,"budowa optyczna ","10 elementów w 7 grupach (w tym jedna soczewka sferyczna"]
[]
[{"$nulls":3},"Zestaw do montażu podcastów audio"]
[null,"2.16","Interfejs audio + mikser"]
[null,null,"Zakres częstotliwości","   Wejścia mikrofonowe: 20Hz - 20kHz    Wyjścia monitorowe: 20Hz - 20kHz "]
[null,null,"Impedancja wejściowa mikrofonu","   ok. 4K omów "]
[null,null,"Impedancja wej. instrumentu","ok. 1MΩ "]
[null,null,"Równoważny szum","ok. -131.5dBV (ważony A) "]
[null,null,"Maks poziom wyjścia liniowego","ok. 4 dBu "]
[null,null,"Moc wyjścia słuchawkowego","ok. 250mW "]
[null,null,"Głębia bitowa:","ok. 24 bity "]
[null,null,"Częstotliwość próbkowania","ok. 48 kHz "]
[null,null,"Wymiary","(dł. x szer. x wys.): 235 x 225 x 76 cm "]
[null,null,"Mikrofon","2 szt wraz ze statywami 360-stopni z regulacją oraz mocowaniem do stołu"]
[null,null,"Zasada działania","Dynamiczny "]
[null,null,"Zakres częstotliwości","ok. 50Hz - 13kHz "]
[null,null,"Impedancja wyjściowa","ok.  320Ω "]
[null,null,"Czułość ","ok. -57.0dB re 1 Volt/Pascal (1.60mV @ 94 dB SPL) +/- 2 dB @ 1kHz "]
[null,null,"Wymiary","ok. (dł. x szer. x wys., mm): 172 x 109 x 62 "]
[null,null,"Słuchawki studyjne"]
[null,null,"Zasada działania","Dynamiczny "]
[null,null,"Pasmo przenoszenia","5Hz - 35kHz"]
[null,null,"Impedancja","32 ohm "]
[null,null,"Czułość","110dB "]
[null,null,"Max SPL","126dBSPL "]
[null,null,"Tłumienie hałasu otoczenia","20dBA "]
[]
[{"$nulls":3},"Telewizor hotelowy z uchwytem wysięgnikowym"]
[null,"2.17","Typ urządzenia","Telewizor 4Kz trybem hotelowym"]
[null,null,"Rozmiar ekranu","43 cali"]
[null,null,"Technologia panelu","LED lub QLED"]
[null,null,"Rozdzielczość ekranu","3840×2160 pikseli (4K/UHD)"]
[null,null,"Smart TV:","Tak"]
[null,null,"System odbioru / tuner","min. cyfrowy (DVB-T2CS2 ), analogowy"]
[null,null,"Moc dźwięku","ok. 20 W"]
[null,null,"Złącza:","HDMI, USB, RJ45"]
[null,null,"Liczba głośników",2]
[null,null,"Funkcje:","Wi-Fi, CI, tryb hotelowy "]
[null,null,"Kolor obudowy:","Czarny"]
[null,null,"Uchwyt VESA","200 x 200 mm, wersja montowanej na ścianie"]
[null,null,"Dołączone akcesoria","Pilot"]
[{"$nulls":3},"Baterie do pilota"]
[{"$nulls":3},"Podstawa telewizora"]
[{"$nulls":3},"Przewód HDMI min 2 m"]
[{"$nulls":3},"Kabel zasilający"]
[null,null,"UCHWYT ŚCIENNY"]
[null,null,"Opis","Uchwyt kompatybilny z wyżej opisanym  TV"]
[{"$nulls":3},"Obrotowy i uchylny pozwalający na regulację konta widzenia "]
[{"$nulls":3},"Kolor:  czarny"]
[{"$nulls":3},"Regulacja obrotu: TAK ( od 60 st. do - 60 st.)"]
[{"$nulls":3},"Regulacja nachylenia: TAK (od 3st. do -15 st.)"]
[{"$nulls":3},"Regulowana odległość od ściany: TAK ( od ok.. 67 do ok. 355 mm )"]
[{"$nulls":3},"W zestawie montażowym: kołki rozporowe, śruby, organizer kablowy, poziomica"]
[]
[{"$nulls":3},"Power audio z zestawem mikrofonów"]
[null,"2.18","Moc wyjściowa (RMS)","min. 800 W"]
[null,null,"Typ zestawu","Zintegrowany system audio z funkcją mobilną"]
[null,null,"Głośniki","2 × 8-calowe głośniki niskotonowe, 2 × 2,75-calowe przetworniki wysokotonowe"]
[null,null,"Łączność bezprzewodowa","Bluetooth 5.0 lub nowszy, True Wireless Stereo (TWS)"]
[null,null,"Złącza","Wejście mikrofonowe (Jack 6,3 mm lub XLR), wejście gitarowe (Jack 6,3 mm), USB-A, AUX (3,5 mm)"]
[null,null,"Zasilanie","Wbudowany akumulator (czas pracy min. 6 h) lub zasilanie sieciowe"]
[null,null,"Ładowanie","Możliwość ładowania przez port USB"]
[null,null,"Sterowanie","Panel fizyczny + aplikacja mobilna"]
[null,null,"Dodatkowe funkcje","Efekty świetlne LED (opcjonalnie), korektor dźwięku (EQ), redukcja szumów mikrofonowych, przycisk ON/OFF, system bass reflex"]
[null,null,"Odtwarzanie muzyki z USB","Obsługa plików MP3, WAV, WMA"]
[null,null,"Dedykowana aplikacja","Tak – do sterowania funkcjami głośnika"]
[null,null,"Mobilność","Urządzenie przenośne, wyposażone w kółka i uchwyt transportowy"]
[null,null,"Mikrofony – typ","Dynamiczne, bezprzewodowe"]
[null,null,"Charakterystyka","Kardioidalna (jednokierunkowa)"]
[null,null,"Pasmo przenoszenia","50 Hz – 15 000 Hz"]
[null,null,"Dynamika","min. 100 dB"]
[null,null,"Szumy własne","max. 59 dB"]
[null,null,"Zasilanie","Baterie AA lub akumulator"]
[null,null,"Zasięg działania","min. 20 m w otwartej przestrzeni"]
[]
[{"$nulls":3},"Monitor interaktywny z montażem nasciennym ver.2"]
[null,"2.19","Rodzaj:","Monitor interaktywny (dotykowy)"]
[null,null,"Rodzaj panelu:","LED, DLED"]
[null,null,"przekątna:","min. 86 cali"]
[null,null,"Technologia dotykowa","podczerwień"]
[null,null,"Rozdzielczość:","min 4K (3840 x 2160 px)"]
[null,null,"Format:","16x9"]
[null,null,"Jasność:","min. 400 cd/m2"]
[null,null,"Kąt widzenia:","min. 178"]
[null,null,"Ilość pkt dotyku:","min 20 pkt"]
[null,null,"Rodzaj szkła","AG smooth glass"]
[null,null,"Głośniki:","min. 2 x 16W"]
[null,null,"Pozycja głośników:","Przód"]
[null,null,"Powierzchnia Antyodblaskowa:","TAK"]
[null,null,"WiFi:","TAK 2.4 Ghz / 5 Ghz"]
[null,null,"Tryb tablicy interaktywnej:","TAK"]
[null,null,"Formaty multimedialne:","min. JPEG. BMP. PNG Video | MPEG1. MPEG2. MPEG4. H.264. H.265. RM. RMVB. MOV. MJPEG. VC1. DivX. FLV (Support 1080P. 4K HD Decoding) Audio| MP3. M4A. (AAC)"]
[null,null,"Wsparcie dla drukarek WIFI:","TAK"]
[null,null,"Wejścia HDMI:","min. 3 szt."]
[null,null,"Wyjścia HDMI:","min. 1 szt. "]
[null,null,"Wejścia jack 3.5mm:","Tak"]
[null,null,"LAN:","Tak"]
[null,null,"Rysik w zestawie","Min 4 szt"]
[null,null,"Redukcja Światła Niebieskiego","TAK"]
[null,null,"W zestawie:","Kabel USB min. 5M, Pilot, Kabel HDMI (min. 5m),  Piórko, Uchwyt naścienny, Pilot"]
[null,null,"Uwaga","Wymagany jest montaż przez sprzedającego u zamawiającego"]
[]
[{"$nulls":3},"Monitor 75\" 4k "]
[null,"2.20","Przekątna ekranu","min 75\", "]
[null,null,"Typ panelu","IPS LED"]
[null,null,"Rozdzielczość fizyczna","3840 × 2160 (4K UHD)"]
[null,null,"Format obrazu","16:9"]
[null,null,"Jasność","Minimum 500 cd/m²"]
[null,null,"Kontrast statyczny","1200:1"]
[null,null,"Czas reakcji","8 ms"]
[null,null,"Kąty widzenia (poziomo/pionowo)","178° / 178°"]
[null,null,"Synchronizacja pozioma","28 – 160 kHz"]
[null,null,"Częstotliwość odświeżania","Minimum 60 Hz"]
[null,null,"Liczba wyświetlanych kolorów","1.07 miliarda"]
[null,null,"Rozmiar plamki","0.429 mm"]
[null,null,"Orientacja pracy","Pozioma i pionowa"]
[null,null,"Dokument należy podpisać kwalifikowanym podpisem elektronicznym zgodnie z zapisami IDW."]

{"sheet":"Cz. III OPZ Oprogramowanie","index":3,"n_rows":18,"n_cols":7,"rows_kept":18,"merged":[[1,0,1,4],[17,2,17,5]]}
[]
["CZĘŚĆ III OPIS PRZEDMIOTU ZAMOWIENIA dla części 3"]
[null,null,"Oprogramowanie\ncz. 3","Poz. opisu","ILOŚĆ","Opis Zamawiającego","Opis Wykonawcy"]
[null,null,"Program VR","3.01",2,"ProgramTen Świat Jest Nasz"]
[null,1,{"$nulls":3},"Dane techniczne:\n\nNośnik: Pendrive\nŁączny rozmiar plików: 26,5 GB\nFormat plików: MP4\nRozdzielczość filmów: 4k (na całą sferę)\nSzybkość danych: 20MB/s\nLiczba klatek na sekundę: 25"]
[{"$nulls":5},"Lista odcinków:\n\n01. Tajwan – Tajpej (12:42)\n02. Tajwan – Tajpej (12:02)\n03. Tajwan – Kaohsiung nocą (14:19)\n04. Tajwan – Kaohsiung oraz Taizhong (09:37)\n05. Botswana – Francistown (14:42)\n06. Botswana – Francistown poza centrum (10:10)\n07. Botswana – Safari oraz farma krokodyli (07:29)\n08. Botswana – Gaborone (16:57)\n09. Estonia – Vlog z Tallina (12:42)\n10. Liechtenstein – Vlog z księstwa (16:35)\n11. San Marino – Vlog ze starego miasta (12:19)\n12. Monako –  (10:27)"]
[]
[null,null,"Program Graficzny","3.02",1,"CorelDRAW Graphics Suite Classroom 2024"]
[{"$nulls":5},"Licencja dożywotnia dla Szkół 15 + 1 = 16 stanowisk komputerowych PL  "]
[null,2,{"$nulls":3},"    Przewodnik szybkiego startu\n    Karta szybkiego wyszukiwania\n    Pliki Pomocy\nWYMAGANIA SYSTEMOWE :\n    Microsoft Windows 10 wersja 64-bitowa\n    Procesor Intel Core 2 Duo lub AMD Athlon 64\n    2 GB pamięci RAM\n    1 GB miejsca na dysku twardym (w przypadku instalacji bez zasobów)\n    Mysz, tablet lub ekran dotykowy\n    Rozdzielczość ekranu 1280 x 768\n    Napęd DVD lub USB\n    Program Microsoft Internet Explorer 8 lub nowszy\n    Aby korzystać z subskrypcji i członkostwa, instalować aktualizacje oraz mieć dostęp do niektórych funkcji, w tym Centrum zasobów, narzędzi kodów QR i serwisu ConceptShare, wymagane jest połączenie internetowe\n"]
[]
[null,null,"Program do zdalnej łączności między PC","3.03",1,"AnyDesk"]
[null,3,{"$nulls":3},"Licencja na rok\n\n1 licencjonowany użytkownik z maksymalnie 3 urządzeniami\n\n    Połączenia 1 do 1\n    Obsługa urządzeń mobilnych\n    Dozwolone 3 loginy\n    Do 100 zarządzanych urządzeń (dostęp nienadzorowany)\n    Możliwość połączenia się z nieograniczoną liczbą urządzeń (dostęp interaktywny)\n    Wake-On-LAN\n\n  \n\n"]
[]
[null,null,"Oprogramowanie serwerowe","3.04",1,"Windows Server Datacenter 2025 16-Core Polish"]
[null,4,{"$nulls":3},"Typ oprogramowania:  Serwerowe\nWersja produktu:  OEM\nTyp licencji:  Nowa licencja\nRodzaj licencji oprogramowania:  Brak ograniczeń\nCzas trwania licencji:  Nieograniczony\nWersja językowa  polska \nLiczba rdzeni:  16 (rozszerzana dodatkowymi licencjami) \nSytem: 64Bit\n\nFunkcje Wirtualizacja, Kontenery, Hyper-V, Storage Spaces Direct, Replikacja magazynu, Ochrona sieci\n"," "]
[]
[null,null,"Dokument należy podpisać kwalifikowanym podpisem elektronicznym zgodnie z zapisami IDW."]

{"sheet":"Zał. 2 Formularz asort.-il. IT","index":4,"n_rows":44,"n_cols":12,"rows_kept":44,"merged":[[3,1,41,1],[43,3,43,6]]}
[{"$nulls":3},"ZAŁĄCZNIK NR  2. Formularz asortymentowo- ilościowy część 1"]
[]
[{"$nulls":5},"ILOŚĆ","Zamawiający wymaga podania: nazwy oferowanego produktu oraz nazwy producenta i roku produkcji","Zamawiający wymaga podania \nnr katalogowego oferowanego produktu","CENA JEDN. \nNETTO","WARTOŚĆ\nNETTO","STAWKA VAT %","CENA \n(WARTOŚĆ\nBRUTTO)"]
[null,"Ogólnouczelniane  cz. 1",1,{"$f":"Zestawienie!C4","v":"Komputer stacjonarny ver. 1"},{"$f":"Zestawienie!D4","v":"1.01"},{"$f":"Zestawienie!W4","v":50}]
[null,null,2,{"$f":"Zestawienie!C5","v":"Komputer stacjonarny ver. 2"},{"$f":"Zestawienie!D5","v":"1.02"},{"$f":"Zestawienie!W5","v":11}]
[null,null,3,{"$f":"Zestawienie!C6","v":"Komputer stacjonarny ver. 3"},{"$f":"Zestawienie!D6","v":"1.03"},{"$f":"Zestawienie!W6","v":1}]
[null,null,4,{"$f":"Zestawienie!C7","v":"Monitor ver. 1"},{"$f":"Zestawienie!D7","v":"1.04"},{"$f":"Zestawienie!W7","v":47}]
[null,null,5,{"$f":"Zestawienie!C8","v":"Monitor ver. 2"},{"$f":"Zestawienie!D8","v":"1.05"},{"$f":"Zestawienie!W8","v":7}]
[null,null,6,{"$f":"Zestawienie!C9","v":"Laptop ver. 1"},{"$f":"Zestawienie!D9","v":"1.06"},{"$f":"Zestawienie!W9","v":20}]
[null,null,7,{"$f":"Zestawienie!C10","v":"Laptop ver. 2"},{"$f":"Zestawienie!D10","v":"1.07"},{"$f":"Zestawienie!W10","v":5}]
[null,null,8,{"$f":"Zestawienie!C11","v":"Laptop ver. 3"},{"$f":"Zestawienie!D11","v":1.08},{"$f":"Zestawienie!W11","v":3}]
[null,null,9,{"$f":"Zestawienie!C12","v":"Stacja dokująca ver. 1"},{"$f":"Zestawienie!D12","v":"1.09"},{"$f":"Zestawienie!W12","v":4}]
[null,null,10,{"$f":"Zestawienie!C13","v":"Komputer typu tablet wraz z klawiaturą oraz rysikeim"},{"$f":"Zestawienie!D13","v":"1.10"},{"$f":"Zestawienie!W13","v":1}]
[null,null,11,{"$f":"Zestawienie!C14","v":"Zewnętrzny dysk twardy"},{"$f":"Zestawienie!D14","v":"1.11"},{"$f":"Zestawienie!W14","v":3}]
[null,null,12,{"$f":"Zestawienie!C15","v":"Zewnętrzny dysk SSD"},{"$f":"Zestawienie!D15","v":"1.12"},{"$f":"Zestawienie!W15","v":1}]
[null,null,13,{"$f":"Zestawienie!C16","v":"Dysk SSD 512 GB"},{"$f":"Zestawienie!D16","v":"1.13"},{"$f":"Zestawienie!W16","v":27}]
[null,null,14,{"$f":"Zestawienie!C17","v":"Dysk SSD 1000 GB (1TB) M.2 "},{"$f":"Zestawienie!D17","v":"1.14"},{"$f":"Zestawienie!W17","v":37}]
[null,null,15,{"$f":"Zestawienie!C18","v":"Dysk SSD 512 GB M.2 "},{"$f":"Zestawienie!D18","v":"1.15"},{"$f":"Zestawienie!W18","v":63}]
[null,null,16,{"$f":"Zestawienie!C19","v":"Dysk SSD 1TB"},{"$f":"Zestawienie!D19","v":"1.16"},{"$f":"Zestawienie!W19","v":6}]
[null,null,17,{"$f":"Zestawienie!C20","v":"Klawiatura i myszka bezprzewodowa ver.1"},{"$f":"Zestawienie!D20","v":"1.17"},{"$f":"Zestawienie!W20","v":5}]
[null,null,18,{"$f":"Zestawienie!C21","v":"Zestaw Klawiatura + Mysz ver.2"},{"$f":"Zestawienie!D21","v":"1.18"},{"$f":"Zestawienie!W21","v":23}]
[null,null,19,{"$f":"Zestawienie!C22","v":"Switch  zarządzalny ver 2"},{"$f":"Zestawienie!D22","v":"1.19"},{"$f":"Zestawienie!W22","v":8}]
[null,null,20,{"$f":"Zestawienie!C23","v":"UPS"},{"$f":"Zestawienie!D23","v":"1.20"},{"$f":"Zestawienie!W23","v":1}]
[null,null,21,{"$f":"Zestawienie!C24","v":"Obudowa do dysku USB 3.2 - SSD/NVMe M.2"},{"$f":"Zestawienie!D24","v":"1.21"},{"$f":"Zestawienie!W24","v":1}]
[null,null,22,{"$f":"Zestawienie!C25","v":"Adapter Bluetooth"},{"$f":"Zestawienie!D25","v":"1.22"},{"$f":"Zestawienie!W25","v":2}]
[null,null,23,{"$f":"Zestawienie!C26","v":"Czytnik kart pamięci"},{"$f":"Zestawienie!D26","v":"1.23"},{"$f":"Zestawienie!W26","v":1}]
[null,null,24,{"$f":"Zestawienie!C27","v":"Przewód Ethernet - Patchcord"},{"$f":"Zestawienie!D27","v":"1.24"},{"$f":"Zestawienie!W27","v":16}]
[null,null,25,{"$f":"Zestawienie!C28","v":"Stacja dokująca ver. 2"},{"$f":"Zestawienie!D28","v":"1.25"},{"$f":"Zestawienie!W28","v":2}]
[null,null,26,{"$f":"Zestawienie!C29","v":"Tester LAN"},{"$f":"Zestawienie!D29","v":"1.26"},{"$f":"Zestawienie!W29","v":3}]
[null,null,27,{"$f":"Zestawienie!C30","v":"Dmuchawa wielofunkcyjna"},{"$f":"Zestawienie!D30","v":"1.27"},{"$f":"Zestawienie!W30","v":3}]
[null,null,28,{"$f":"Zestawienie!C31","v":"Zestaw zaciskarka do konówek ethernet "},{"$f":"Zestawienie!D31","v":"1.28"},{"$f":"Zestawienie!W31","v":3}]
[null,null,29,{"$f":"Zestawienie!C32","v":"Linka zabezpieczająca do laptopa"},{"$f":"Zestawienie!D32","v":"1.29"},{"$f":"Zestawienie!W32","v":17}]
[null,null,30,{"$f":"Zestawienie!C33","v":"Tester przewodów i sieci WI-fi"},{"$f":"Zestawienie!D33","v":"1.30"},{"$f":"Zestawienie!W33","v":1}]
[null,null,31,{"$f":"Zestawienie!C34","v":"UPS Rack do szafy dystrybucyjnej 3kv"},{"$f":"Zestawienie!D34","v":"1.31"},{"$f":"Zestawienie!W34","v":10}]
[null,null,32,{"$f":"Zestawienie!C35","v":"Router do szafy dystrybucyjnej"},{"$f":"Zestawienie!D35","v":"1.32"},{"$f":"Zestawienie!W35","v":10}]
[null,null,33,{"$f":"Zestawienie!C36","v":"Urządzenie NAS z dyskami"},{"$f":"Zestawienie!D36","v":"1.33"},{"$f":"Zestawienie!W36","v":6}]
[null,null,34,{"$f":"Zestawienie!C37","v":"Niszczarka dysków HDD"},{"$f":"Zestawienie!D37","v":"1.34"},{"$f":"Zestawienie!W37","v":2}]
[null,null,35,{"$f":"Zestawienie!C38","v":"Karta Micro SD"},{"$f":"Zestawienie!D38","v":"1.35"},{"$f":"Zestawienie!W38","v":1}]
[null,null,36,{"$f":"Zestawienie!C39","v":"Urządzenie wielofunkcyjne atramentowe"},{"$f":"Zestawienie!D39","v":"1.36"},{"$f":"Zestawienie!W39","v":4}]
[null,null,37,{"$f":"Zestawienie!C40","v":"Urządzenie wielofunkcyjne laserowe"},{"$f":"Zestawienie!D40","v":"1.37"},{"$f":"Zestawienie!W40","v":2}]
[null,null,38,{"$f":"Zestawienie!C41","v":"Drukarka o wysokiej wydajności"},{"$f":"Zestawienie!D41","v":"1.38"},{"$f":"Zestawienie!W41","v":1}]
[null,null,39,{"$f":"Zestawienie!C42","v":"Urządzenie wielofunkcyjne - kolorowe, laserowe"},{"$f":"Zestawienie!D42","v":"1.39"},{"$f":"Zestawienie!W42","v":1}]
[]
[{"$nulls":3},"Dokument należy podpisać kwalifikowanym podpisem elektronicznym zgodnie z zapisami IDW.",{"$nulls":4},"suma"]

{"sheet":"Zał. 2 Form. asort.  Multimedia","index":5,"n_rows":24,"n_cols":12,"rows_kept":24,"merged":[[3,1,21,1],[23,3,23,6]]}
[{"$nulls":3},"ZAŁĄCZNIK NR  2. Formularz asortymentowo- ilościowy część 2"]
[]
[{"$nulls":5},"ILOŚĆ","Zamawiający wymaga podania: nazwy oferowanego produktu oraz nazwy producenta i roku produkcji","Zamawiający wymaga podania \nnr katalogowego oferowanego produktu","CENA JEDN. \nNETTO","WARTOŚĆ\nNETTO","STAWKA VAT %","CENA \n(WARTOŚĆ\nBRUTTO)"]
[null,"Multimedia  cz. 2",1,{"$f":"Zestawienie!C43","v":"Głośnik bluetooth ver.1"},{"$f":"Zestawienie!D43","v":"2.01"},{"$f":"Zestawienie!W43","v":2}]
[null,null,2,{"$f":"Zestawienie!C44","v":"Głosnik Bluetooth ver.2"},{"$f":"Zestawienie!D44","v":"2.02"},{"$f":"Zestawienie!W44","v":1}]
[null,null,3,{"$f":"Zestawienie!C45","v":"Kamera internetowa USB z mikrofonem "},{"$f":"Zestawienie!D45","v":"2.03"},{"$f":"Zestawienie!W45","v":1}]
[null,null,4,{"$f":"Zestawienie!C46","v":"Projektor ver. 1"},{"$f":"Zestawienie!D46","v":"2.04"},{"$f":"Zestawienie!W46","v":10}]
[null,null,5,{"$f":"Zestawienie!C47","v":"Ekran ścienny "},{"$f":"Zestawienie!D47","v":"2.06"},{"$f":"Zestawienie!W47","v":8}]
[null,null,6,{"$f":"Zestawienie!C48","v":"Słuchawki bezprzewodowe nauszne z mikrofonem"},{"$f":"Zestawienie!D48","v":"2.07"},{"$f":"Zestawienie!W48","v":3}]
[null,null,7,{"$f":"Zestawienie!C49","v":"Monitor interaktywny z montażem nasciennym ver.1"},{"$f":"Zestawienie!D49","v":"2.08"},{"$f":"Zestawienie!W49","v":2}]
[null,null,8,{"$f":"Zestawienie!C50","v":"Telewizor duży z montażem naściennym"},{"$f":"Zestawienie!D50","v":"2.09"},{"$f":"Zestawienie!W50","v":2}]
[null,null,9,{"$f":"Zestawienie!C51","v":"Google VR"},{"$f":"Zestawienie!D51","v":"2.10"},{"$f":"Zestawienie!W51","v":11}]
[null,null,10,{"$f":"Zestawienie!C52","v":"Mikrofon Wielokierunkowy - Studyjny"},{"$f":"Zestawienie!D52","v":"2.11"},{"$f":"Zestawienie!W52","v":1}]
[null,null,11,{"$f":"Zestawienie!C53","v":"Tablica interaktywna z projektorem"},{"$f":"Zestawienie!D53","v":"2.12"},{"$f":"Zestawienie!W53","v":1}]
[null,null,12,{"$f":"Zestawienie!C54","v":"Kamera sportowa \"LIVE\""},{"$f":"Zestawienie!D54","v":"2.13"},{"$f":"Zestawienie!W54","v":3}]
[null,null,13,{"$f":"Zestawienie!C55","v":"Zestaw 3 Lamp LED ze statywami i walizką"},{"$f":"Zestawienie!D55","v":"2.14"},{"$f":"Zestawienie!W55","v":1}]
[null,null,14,{"$f":"Zestawienie!C56","v":"Aparat bezlusterkowy cyfrowy"},{"$f":"Zestawienie!D56","v":"2.15"},{"$f":"Zestawienie!W56","v":1}]
[null,null,15,{"$f":"Zestawienie!C57","v":"Zestaw do montażu podcastów audio"},{"$f":"Zestawienie!D57","v":"2.16"},{"$f":"Zestawienie!W57","v":1}]
[null,null,16,{"$f":"Zestawienie!C58","v":"Telewizor hotelowy z uchwytem wysięgnikowym"},{"$f":"Zestawienie!D58","v":"2.17"},{"$f":"Zestawienie!W58","v":17}]
[null,null,17,{"$f":"Zestawienie!C59","v":"Power audio z zestawem mikrofonów"},{"$f":"Zestawienie!D59","v":"2.18"},{"$f":"Zestawienie!W59","v":1}]
[null,null,18,{"$f":"Zestawienie!C60","v":"Monitor interaktywny z montażem nasciennym ver.2"},{"$f":"Zestawienie!D60","v":"2.19"},{"$f":"Zestawienie!W60","v":6}]
[null,null,19,{"$f":"Zestawienie!C61","v":"Monitor 75\" 4k "},{"$f":"Zestawienie!D61","v":"2.20"},{"$f":"Zestawienie!W61","v":2}]
[]
[{"$nulls":3},"Dokument należy podpisać kwalifikowanym podpisem elektronicznym zgodnie z zapisami IDW.",{"$nulls":4},"suma"]

{"sheet":"Zał. 2 Form. asort. il. Oprogr","index":6,"n_rows":9,"n_cols":12,"rows_kept":9,"merged":[[3,1,6,1],[8,3,8,6]]}
[{"$nulls":3},"ZAŁĄCZNIK NR  2. Formularz asortymentowo- ilościowy część 3"]
[]
[{"$nulls":5},"ILOŚĆ","Zamawiający wymaga podania: nazwy oferowanego produktu oraz nazwy producenta i roku produkcji","Zamawiający wymaga podania \nnr katalogowego oferowanego produktu","CENA JEDN. \nNETTO","WARTOŚĆ\nNETTO","STAWKA VAT %","CENA \n(WARTOŚĆ\nBRUTTO)"]
[null,"Oprogramowanie  cz. 3",1,{"$f":"Zestawienie!C62","v":"Program VR"},{"$f":"Zestawienie!D62","v":"3.01"},{"$f":"Zestawienie!W62","v":2}]
[null,null,2,{"$f":"Zestawienie!C63","v":"Program Graficzny"},{"$f":"Zestawienie!D63","v":"3.02"},{"$f":"Zestawienie!W63","v":1}]
[null,null,3,{"$f":"Zestawienie!C64","v":"Program do zdalnej łączności między PC"},{"$f":"Zestawienie!D64","v":"3.03"},{"$f":"Zestawienie!W64","v":1}]
[null,null,4,{"$f":"Zestawienie!C65","v":"Oprogramowanie serwerowe"},{"$f":"Zestawienie!D65","v":"3.04"},{"$f":"Zestawienie!W65","v":1}]
[]
[{"$nulls":3},"Dokument należy podpisać kwalifikowanym podpisem elektronicznym zgodnie z zapisami IDW.",{"$nulls":4},"suma"]